Workbook

Sheet Employé
C5: Nom_employé | D5: No_employé | E5: Emploi
C6: 3 | D6: Employé y | E6: B | G6: B = BUREAU (90010)
C7: 4 | D7: Employé x | E7: C | G7: T = TRAVAILLEUR (80110)
C8: 5 | D8: Employer z | E8: TA | G8: C = CHANTIER (80020)
C9: 6 | D9: Employer A | E9: TA | G9: TA = TRAVAUX AUXILIAIRE
C10: 7 | D10: Employer B | E10: B | G10: EX = EXCLUS
C11: 8 | D11: Employer C | E11: EX

Sheet CUMULATIF
A1: 1 | B1: 2 | C1: 3 | D1: 4 | E1: 5 | F1: 6 | G1: 7 | H1: 8 | I1: 9 | J1: 10 | K1: 11 | L1: 12 | M1: 13 | N1: 14 | O1: 15 | P1: 16 | Q1: 17 | R1: 18 | S1: 19
B2: N° de période à ajouter | E2: 6
N5: Poste
A6: N° employé | B6: Nom employé | C6: Revenu | D6: Dépense | F6: Facture surplus | H6: Revenu généré | I6: Excédent | J6: Ne pas compter | K6: HRS | L6: taux | N6: 25 | O6: 456 | P6: 785 | Q6: 21 | R6: 54 | S6: Validation | T6: Classification
D7: (-) | E7: (+) | F7: (+) | G7: Inclus | I7: 0
A8: Colonne1 | B8: Colonne2 | C8: Colonne3 | D8: Colonne4 | E8: Colonne5 | F8: Colonne6 | G8: Colonne7 | H8: Colonne8 | I8: Colonne9 | J8: Colonne10 | K8: Colonne11 | L8: Colonne12 | M8: Colonne13 | N8: Colonne14 | O8: Colonne15 | P8: Colonne16 | Q8: Colonne163 | R8: Colonne162 | S8: Colonne17
A9: 3 | B9: =IF(A9="","",VLOOKUP(A9,Nom_employé,2,FALSE)) -> Employé y | C9: =IFERROR(VLOOKUP($A9,_2[],C$1,FALSE),0)+IFERROR(VLOOKUP($A9,_3[],C$1,FALSE),0)+IFERROR(VLOOKUP($A9,_4[],C$1,FALSE),0)+IFERROR(VLOOKUP($A9,_5[],C$1,FALSE),0) -> 3895.81 | D9: =IFERROR(VLOOKUP($A9,_2[],D$1,FALSE),0)+IFERROR(VLOOKUP($A9,_3[],D$1,FALSE),0)+IFERROR(VLOOKUP($A9,_4[],D$1,FALSE),0)+IFERROR(VLOOKUP($A9,_5[],D$1,FALSE),0) -> 10 | E9: =IFERROR(VLOOKUP($A9,_2[],E$1,FALSE),0)+IFERROR(VLOOKUP($A9,_3[],E$1,FALSE),0)+IFERROR(VLOOKUP($A9,_4[],E$1,FALSE),0)+IFERROR(VLOOKUP($A9,_5[],E$1,FALSE),0) -> 0 | F9: =IFERROR(VLOOKUP($A9,_2[],F$1,FALSE),0)+IFERROR(VLOOKUP($A9,_3[],F$1,FALSE),0)+IFERROR(VLOOKUP($A9,_4[],F$1,FALSE),0)+IFERROR(VLOOKUP($A9,_5[],F$1,FALSE),0) -> 20 | G9: =IFERROR(VLOOKUP($A9,_2[],G$1,FALSE),0)+IFERROR(VLOOKUP($A9,_3[],G$1,FALSE),0)+IFERROR(VLOOKUP($A9,_4[],G$1,FALSE),0)+IFERROR(VLOOKUP($A9,_5[],G$1,FALSE),0) -> 0 | H9: =IFERROR(VLOOKUP($A9,_2[],H$1,FALSE),0)+IFERROR(VLOOKUP($A9,_3[],H$1,FALSE),0)+IFERROR(VLOOKUP($A9,_4[],H$1,FALSE),0)+IFERROR(VLOOKUP($A9,_5[],H$1,FALSE),0) -> 3905.81 | I9: =IFERROR(VLOOKUP($A9,_2[],I$1,FALSE),0)+IFERROR(VLOOKUP($A9,_3[],I$1,FALSE),0)+IFERROR(VLOOKUP($A9,_4[],I$1,FALSE),0)+IFERROR(VLOOKUP($A9,_5[],I$1,FALSE),0) -> 3905.81 | J9: =IFERROR(VLOOKUP($A9,_2[],J$1,FALSE),0)+IFERROR(VLOOKUP($A9,_3[],J$1,FALSE),0)+IFERROR(VLOOKUP($A9,_4[],J$1,FALSE),0)+IFERROR(VLOOKUP($A9,_5[],J$1,FALSE),0) -> 0 | K9: =IFERROR(VLOOKUP($A9,_2[],K$1,FALSE),0)+IFERROR(VLOOKUP($A9,_3[],K$1,FALSE),0)+IFERROR(VLOOKUP($A9,_4[],K$1,FALSE),0)+IFERROR(VLOOKUP($A9,_5[],K$1,FALSE),0) -> 110 | L9: =IF(Cumul_emp[[#This Row],[Colonne9]]>0,Cumul_emp[[#This Row],[Colonne9]]/Cumul_emp[[#This Row],[Colonne11]],0) -> 35.50736364 | M9: =IFERROR(VLOOKUP($A9,_2[],M$1,FALSE),0)+IFERROR(VLOOKUP($A9,_3[],M$1,FALSE),0)+IFERROR(VLOOKUP($A9,_4[],M$1,FALSE),0)+IFERROR(VLOOKUP($A9,_5[],M$1,FALSE),0) -> 0 | N9: =IFERROR(VLOOKUP($A9,_2[],N$1,FALSE),0)+IFERROR(VLOOKUP($A9,_3[],N$1,FALSE),0)+IFERROR(VLOOKUP($A9,_4[],N$1,FALSE),0)+IFERROR(VLOOKUP($A9,_5[],N$1,FALSE),0) -> 12 | O9: =IFERROR(VLOOKUP($A9,_2[],O$1,FALSE),0)+IFERROR(VLOOKUP($A9,_3[],O$1,FALSE),0)+IFERROR(VLOOKUP($A9,_4[],O$1,FALSE),0)+IFERROR(VLOOKUP($A9,_5[],O$1,FALSE),0) -> 15 | P9: =IFERROR(VLOOKUP($A9,_2[],P$1,FALSE),0)+IFERROR(VLOOKUP($A9,_3[],P$1,FALSE),0)+IFERROR(VLOOKUP($A9,_4[],P$1,FALSE),0)+IFERROR(VLOOKUP($A9,_5[],P$1,FALSE),0) -> 63 | Q9: =IFERROR(VLOOKUP($A9,_2[],Q$1,FALSE),0)+IFERROR(VLOOKUP($A9,_3[],Q$1,FALSE),0)+IFERROR(VLOOKUP($A9,_4[],Q$1,FALSE),0)+IFERROR(VLOOKUP($A9,_5[],Q$1,FALSE),0) -> 0 | R9: =IFERROR(VLOOKUP($A9,_2[],R$1,FALSE),0)+IFERROR(VLOOKUP($A9,_3[],R$1,FALSE),0)+IFERROR(VLOOKUP($A9,_4[],R$1,FALSE),0)+IFERROR(VLOOKUP($A9,_5[],R$1,FALSE),0) -> 20 | S9: =IF(T9="EX","OK validé",(IF(A9="","",IF(SUM(M9+N9+O9+P9+Q9+R9)<>J9,"À vérifier","OK validé")))) -> À vérifier
A10: 4 | B10: Employé x | C10: =IFERROR(VLOOKUP($A10,_2[],C$1,FALSE),0)+IFERROR(VLOOKUP($A10,_3[],C$1,FALSE),0)+IFERROR(VLOOKUP($A10,_4[],C$1,FALSE),0)+IFERROR(VLOOKUP($A10,_5[],C$1,FALSE),0) -> 2365 | D10: =IFERROR(VLOOKUP($A10,_2[],D$1,FALSE),0)+IFERROR(VLOOKUP($A10,_3[],D$1,FALSE),0)+IFERROR(VLOOKUP($A10,_4[],D$1,FALSE),0)+IFERROR(VLOOKUP($A10,_5[],D$1,FALSE),0) -> 0 | E10: =IFERROR(VLOOKUP($A10,_2[],E$1,FALSE),0)+IFERROR(VLOOKUP($A10,_3[],E$1,FALSE),0)+IFERROR(VLOOKUP($A10,_4[],E$1,FALSE),0)+IFERROR(VLOOKUP($A10,_5[],E$1,FALSE),0) -> 0 | F10: =IFERROR(VLOOKUP($A10,_2[],F$1,FALSE),0)+IFERROR(VLOOKUP($A10,_3[],F$1,FALSE),0)+IFERROR(VLOOKUP($A10,_4[],F$1,FALSE),0)+IFERROR(VLOOKUP($A10,_5[],F$1,FALSE),0) -> 0 | G10: =IFERROR(VLOOKUP($A10,_2[],G$1,FALSE),0)+IFERROR(VLOOKUP($A10,_3[],G$1,FALSE),0)+IFERROR(VLOOKUP($A10,_4[],G$1,FALSE),0)+IFERROR(VLOOKUP($A10,_5[],G$1,FALSE),0) -> 0 | H10: =IFERROR(VLOOKUP($A10,_2[],H$1,FALSE),0)+IFERROR(VLOOKUP($A10,_3[],H$1,FALSE),0)+IFERROR(VLOOKUP($A10,_4[],H$1,FALSE),0)+IFERROR(VLOOKUP($A10,_5[],H$1,FALSE),0) -> 2365 | I10: =IFERROR(VLOOKUP($A10,_2[],I$1,FALSE),0)+IFERROR(VLOOKUP($A10,_3[],I$1,FALSE),0)+IFERROR(VLOOKUP($A10,_4[],I$1,FALSE),0)+IFERROR(VLOOKUP($A10,_5[],I$1,FALSE),0) -> 2365 | J10: =IFERROR(VLOOKUP($A10,_2[],J$1,FALSE),0)+IFERROR(VLOOKUP($A10,_3[],J$1,FALSE),0)+IFERROR(VLOOKUP($A10,_4[],J$1,FALSE),0)+IFERROR(VLOOKUP($A10,_5[],J$1,FALSE),0) -> 0 | K10: =IFERROR(VLOOKUP($A10,_2[],K$1,FALSE),0)+IFERROR(VLOOKUP($A10,_3[],K$1,FALSE),0)+IFERROR(VLOOKUP($A10,_4[],K$1,FALSE),0)+IFERROR(VLOOKUP($A10,_5[],K$1,FALSE),0) -> 110 | L10: =IF(Cumul_emp[[#This Row],[Colonne9]]>0,Cumul_emp[[#This Row],[Colonne9]]/Cumul_emp[[#This Row],[Colonne11]],0) -> 21.5 | M10: =IFERROR(VLOOKUP($A10,_2[],M$1,FALSE),0)+IFERROR(VLOOKUP($A10,_3[],M$1,FALSE),0)+IFERROR(VLOOKUP($A10,_4[],M$1,FALSE),0)+IFERROR(VLOOKUP($A10,_5[],M$1,FALSE),0) -> 0 | N10: =IFERROR(VLOOKUP($A10,_2[],N$1,FALSE),0)+IFERROR(VLOOKUP($A10,_3[],N$1,FALSE),0)+IFERROR(VLOOKUP($A10,_4[],N$1,FALSE),0)+IFERROR(VLOOKUP($A10,_5[],N$1,FALSE),0) -> 35 | O10: =IFERROR(VLOOKUP($A10,_2[],O$1,FALSE),0)+IFERROR(VLOOKUP($A10,_3[],O$1,FALSE),0)+IFERROR(VLOOKUP($A10,_4[],O$1,FALSE),0)+IFERROR(VLOOKUP($A10,_5[],O$1,FALSE),0) -> 35 | P10: =IFERROR(VLOOKUP($A10,_2[],P$1,FALSE),0)+IFERROR(VLOOKUP($A10,_3[],P$1,FALSE),0)+IFERROR(VLOOKUP($A10,_4[],P$1,FALSE),0)+IFERROR(VLOOKUP($A10,_5[],P$1,FALSE),0) -> 30 | Q10: =IFERROR(VLOOKUP($A10,_2[],Q$1,FALSE),0)+IFERROR(VLOOKUP($A10,_3[],Q$1,FALSE),0)+IFERROR(VLOOKUP($A10,_4[],Q$1,FALSE),0)+IFERROR(VLOOKUP($A10,_5[],Q$1,FALSE),0) -> 5 | R10: =IFERROR(VLOOKUP($A10,_2[],R$1,FALSE),0)+IFERROR(VLOOKUP($A10,_3[],R$1,FALSE),0)+IFERROR(VLOOKUP($A10,_4[],R$1,FALSE),0)+IFERROR(VLOOKUP($A10,_5[],R$1,FALSE),0) -> 5 | S10: À vérifier
A11: 5 | B11: Employer z | C11: =IFERROR(VLOOKUP($A11,_2[],C$1,FALSE),0)+IFERROR(VLOOKUP($A11,_3[],C$1,FALSE),0)+IFERROR(VLOOKUP($A11,_4[],C$1,FALSE),0)+IFERROR(VLOOKUP($A11,_5[],C$1,FALSE),0) -> 1000 | D11: =IFERROR(VLOOKUP($A11,_2[],D$1,FALSE),0)+IFERROR(VLOOKUP($A11,_3[],D$1,FALSE),0)+IFERROR(VLOOKUP($A11,_4[],D$1,FALSE),0)+IFERROR(VLOOKUP($A11,_5[],D$1,FALSE),0) -> 0 | E11: =IFERROR(VLOOKUP($A11,_2[],E$1,FALSE),0)+IFERROR(VLOOKUP($A11,_3[],E$1,FALSE),0)+IFERROR(VLOOKUP($A11,_4[],E$1,FALSE),0)+IFERROR(VLOOKUP($A11,_5[],E$1,FALSE),0) -> 0 | F11: =IFERROR(VLOOKUP($A11,_2[],F$1,FALSE),0)+IFERROR(VLOOKUP($A11,_3[],F$1,FALSE),0)+IFERROR(VLOOKUP($A11,_4[],F$1,FALSE),0)+IFERROR(VLOOKUP($A11,_5[],F$1,FALSE),0) -> 0 | G11: =IFERROR(VLOOKUP($A11,_2[],G$1,FALSE),0)+IFERROR(VLOOKUP($A11,_3[],G$1,FALSE),0)+IFERROR(VLOOKUP($A11,_4[],G$1,FALSE),0)+IFERROR(VLOOKUP($A11,_5[],G$1,FALSE),0) -> 0 | H11: =IFERROR(VLOOKUP($A11,_2[],H$1,FALSE),0)+IFERROR(VLOOKUP($A11,_3[],H$1,FALSE),0)+IFERROR(VLOOKUP($A11,_4[],H$1,FALSE),0)+IFERROR(VLOOKUP($A11,_5[],H$1,FALSE),0) -> 1000 | I11: =IFERROR(VLOOKUP($A11,_2[],I$1,FALSE),0)+IFERROR(VLOOKUP($A11,_3[],I$1,FALSE),0)+IFERROR(VLOOKUP($A11,_4[],I$1,FALSE),0)+IFERROR(VLOOKUP($A11,_5[],I$1,FALSE),0) -> 1000 | J11: =IFERROR(VLOOKUP($A11,_2[],J$1,FALSE),0)+IFERROR(VLOOKUP($A11,_3[],J$1,FALSE),0)+IFERROR(VLOOKUP($A11,_4[],J$1,FALSE),0)+IFERROR(VLOOKUP($A11,_5[],J$1,FALSE),0) -> 0 | K11: =IFERROR(VLOOKUP($A11,_2[],K$1,FALSE),0)+IFERROR(VLOOKUP($A11,_3[],K$1,FALSE),0)+IFERROR(VLOOKUP($A11,_4[],K$1,FALSE),0)+IFERROR(VLOOKUP($A11,_5[],K$1,FALSE),0) -> 32 | L11: =IF(Cumul_emp[[#This Row],[Colonne9]]>0,Cumul_emp[[#This Row],[Colonne9]]/Cumul_emp[[#This Row],[Colonne11]],0) -> 31.25 | M11: =IFERROR(VLOOKUP($A11,_2[],M$1,FALSE),0)+IFERROR(VLOOKUP($A11,_3[],M$1,FALSE),0)+IFERROR(VLOOKUP($A11,_4[],M$1,FALSE),0)+IFERROR(VLOOKUP($A11,_5[],M$1,FALSE),0) -> 0 | N11: =IFERROR(VLOOKUP($A11,_2[],N$1,FALSE),0)+IFERROR(VLOOKUP($A11,_3[],N$1,FALSE),0)+IFERROR(VLOOKUP($A11,_4[],N$1,FALSE),0)+IFERROR(VLOOKUP($A11,_5[],N$1,FALSE),0) -> 0 | O11: =IFERROR(VLOOKUP($A11,_2[],O$1,FALSE),0)+IFERROR(VLOOKUP($A11,_3[],O$1,FALSE),0)+IFERROR(VLOOKUP($A11,_4[],O$1,FALSE),0)+IFERROR(VLOOKUP($A11,_5[],O$1,FALSE),0) -> 30 | P11: =IFERROR(VLOOKUP($A11,_2[],P$1,FALSE),0)+IFERROR(VLOOKUP($A11,_3[],P$1,FALSE),0)+IFERROR(VLOOKUP($A11,_4[],P$1,FALSE),0)+IFERROR(VLOOKUP($A11,_5[],P$1,FALSE),0) -> 0 | Q11: =IFERROR(VLOOKUP($A11,_2[],Q$1,FALSE),0)+IFERROR(VLOOKUP($A11,_3[],Q$1,FALSE),0)+IFERROR(VLOOKUP($A11,_4[],Q$1,FALSE),0)+IFERROR(VLOOKUP($A11,_5[],Q$1,FALSE),0) -> 2 | R11: =IFERROR(VLOOKUP($A11,_2[],R$1,FALSE),0)+IFERROR(VLOOKUP($A11,_3[],R$1,FALSE),0)+IFERROR(VLOOKUP($A11,_4[],R$1,FALSE),0)+IFERROR(VLOOKUP($A11,_5[],R$1,FALSE),0) -> 0 | S11: À vérifier
A12: 6 | B12: Employer A | C12: =IFERROR(VLOOKUP($A12,_2[],C$1,FALSE),0)+IFERROR(VLOOKUP($A12,_3[],C$1,FALSE),0)+IFERROR(VLOOKUP($A12,_4[],C$1,FALSE),0)+IFERROR(VLOOKUP($A12,_5[],C$1,FALSE),0) -> 1826.14 | D12: =IFERROR(VLOOKUP($A12,_2[],D$1,FALSE),0)+IFERROR(VLOOKUP($A12,_3[],D$1,FALSE),0)+IFERROR(VLOOKUP($A12,_4[],D$1,FALSE),0)+IFERROR(VLOOKUP($A12,_5[],D$1,FALSE),0) -> 325 | E12: =IFERROR(VLOOKUP($A12,_2[],E$1,FALSE),0)+IFERROR(VLOOKUP($A12,_3[],E$1,FALSE),0)+IFERROR(VLOOKUP($A12,_4[],E$1,FALSE),0)+IFERROR(VLOOKUP($A12,_5[],E$1,FALSE),0) -> 0 | F12: =IFERROR(VLOOKUP($A12,_2[],F$1,FALSE),0)+IFERROR(VLOOKUP($A12,_3[],F$1,FALSE),0)+IFERROR(VLOOKUP($A12,_4[],F$1,FALSE),0)+IFERROR(VLOOKUP($A12,_5[],F$1,FALSE),0) -> 30 | G12: =IFERROR(VLOOKUP($A12,_2[],G$1,FALSE),0)+IFERROR(VLOOKUP($A12,_3[],G$1,FALSE),0)+IFERROR(VLOOKUP($A12,_4[],G$1,FALSE),0)+IFERROR(VLOOKUP($A12,_5[],G$1,FALSE),0) -> 0 | H12: =IFERROR(VLOOKUP($A12,_2[],H$1,FALSE),0)+IFERROR(VLOOKUP($A12,_3[],H$1,FALSE),0)+IFERROR(VLOOKUP($A12,_4[],H$1,FALSE),0)+IFERROR(VLOOKUP($A12,_5[],H$1,FALSE),0) -> 1531.14 | I12: =IFERROR(VLOOKUP($A12,_2[],I$1,FALSE),0)+IFERROR(VLOOKUP($A12,_3[],I$1,FALSE),0)+IFERROR(VLOOKUP($A12,_4[],I$1,FALSE),0)+IFERROR(VLOOKUP($A12,_5[],I$1,FALSE),0) -> 1531.14 | J12: =IFERROR(VLOOKUP($A12,_2[],J$1,FALSE),0)+IFERROR(VLOOKUP($A12,_3[],J$1,FALSE),0)+IFERROR(VLOOKUP($A12,_4[],J$1,FALSE),0)+IFERROR(VLOOKUP($A12,_5[],J$1,FALSE),0) -> 0 | K12: =IFERROR(VLOOKUP($A12,_2[],K$1,FALSE),0)+IFERROR(VLOOKUP($A12,_3[],K$1,FALSE),0)+IFERROR(VLOOKUP($A12,_4[],K$1,FALSE),0)+IFERROR(VLOOKUP($A12,_5[],K$1,FALSE),0) -> 50 | L12: =IF(Cumul_emp[[#This Row],[Colonne9]]>0,Cumul_emp[[#This Row],[Colonne9]]/Cumul_emp[[#This Row],[Colonne11]],0) -> 30.6228 | M12: =IFERROR(VLOOKUP($A12,_2[],M$1,FALSE),0)+IFERROR(VLOOKUP($A12,_3[],M$1,FALSE),0)+IFERROR(VLOOKUP($A12,_4[],M$1,FALSE),0)+IFERROR(VLOOKUP($A12,_5[],M$1,FALSE),0) -> 5 | N12: =IFERROR(VLOOKUP($A12,_2[],N$1,FALSE),0)+IFERROR(VLOOKUP($A12,_3[],N$1,FALSE),0)+IFERROR(VLOOKUP($A12,_4[],N$1,FALSE),0)+IFERROR(VLOOKUP($A12,_5[],N$1,FALSE),0) -> 0 | O12: =IFERROR(VLOOKUP($A12,_2[],O$1,FALSE),0)+IFERROR(VLOOKUP($A12,_3[],O$1,FALSE),0)+IFERROR(VLOOKUP($A12,_4[],O$1,FALSE),0)+IFERROR(VLOOKUP($A12,_5[],O$1,FALSE),0) -> 10 | P12: =IFERROR(VLOOKUP($A12,_2[],P$1,FALSE),0)+IFERROR(VLOOKUP($A12,_3[],P$1,FALSE),0)+IFERROR(VLOOKUP($A12,_4[],P$1,FALSE),0)+IFERROR(VLOOKUP($A12,_5[],P$1,FALSE),0) -> 25 | Q12: =IFERROR(VLOOKUP($A12,_2[],Q$1,FALSE),0)+IFERROR(VLOOKUP($A12,_3[],Q$1,FALSE),0)+IFERROR(VLOOKUP($A12,_4[],Q$1,FALSE),0)+IFERROR(VLOOKUP($A12,_5[],Q$1,FALSE),0) -> 10 | R12: =IFERROR(VLOOKUP($A12,_2[],R$1,FALSE),0)+IFERROR(VLOOKUP($A12,_3[],R$1,FALSE),0)+IFERROR(VLOOKUP($A12,_4[],R$1,FALSE),0)+IFERROR(VLOOKUP($A12,_5[],R$1,FALSE),0) -> 0 | S12: À vérifier
A13: 7 | B13: Employer B | C13: =IFERROR(VLOOKUP($A13,_2[],C$1,FALSE),0)+IFERROR(VLOOKUP($A13,_3[],C$1,FALSE),0)+IFERROR(VLOOKUP($A13,_4[],C$1,FALSE),0)+IFERROR(VLOOKUP($A13,_5[],C$1,FALSE),0) -> 650 | D13: =IFERROR(VLOOKUP($A13,_2[],D$1,FALSE),0)+IFERROR(VLOOKUP($A13,_3[],D$1,FALSE),0)+IFERROR(VLOOKUP($A13,_4[],D$1,FALSE),0)+IFERROR(VLOOKUP($A13,_5[],D$1,FALSE),0) -> 0 | E13: =IFERROR(VLOOKUP($A13,_2[],E$1,FALSE),0)+IFERROR(VLOOKUP($A13,_3[],E$1,FALSE),0)+IFERROR(VLOOKUP($A13,_4[],E$1,FALSE),0)+IFERROR(VLOOKUP($A13,_5[],E$1,FALSE),0) -> 0 | F13: =IFERROR(VLOOKUP($A13,_2[],F$1,FALSE),0)+IFERROR(VLOOKUP($A13,_3[],F$1,FALSE),0)+IFERROR(VLOOKUP($A13,_4[],F$1,FALSE),0)+IFERROR(VLOOKUP($A13,_5[],F$1,FALSE),0) -> 0 | G13: =IFERROR(VLOOKUP($A13,_2[],G$1,FALSE),0)+IFERROR(VLOOKUP($A13,_3[],G$1,FALSE),0)+IFERROR(VLOOKUP($A13,_4[],G$1,FALSE),0)+IFERROR(VLOOKUP($A13,_5[],G$1,FALSE),0) -> 0 | H13: =IFERROR(VLOOKUP($A13,_2[],H$1,FALSE),0)+IFERROR(VLOOKUP($A13,_3[],H$1,FALSE),0)+IFERROR(VLOOKUP($A13,_4[],H$1,FALSE),0)+IFERROR(VLOOKUP($A13,_5[],H$1,FALSE),0) -> 650 | I13: =IFERROR(VLOOKUP($A13,_2[],I$1,FALSE),0)+IFERROR(VLOOKUP($A13,_3[],I$1,FALSE),0)+IFERROR(VLOOKUP($A13,_4[],I$1,FALSE),0)+IFERROR(VLOOKUP($A13,_5[],I$1,FALSE),0) -> 650 | J13: =IFERROR(VLOOKUP($A13,_2[],J$1,FALSE),0)+IFERROR(VLOOKUP($A13,_3[],J$1,FALSE),0)+IFERROR(VLOOKUP($A13,_4[],J$1,FALSE),0)+IFERROR(VLOOKUP($A13,_5[],J$1,FALSE),0) -> 0 | K13: =IFERROR(VLOOKUP($A13,_2[],K$1,FALSE),0)+IFERROR(VLOOKUP($A13,_3[],K$1,FALSE),0)+IFERROR(VLOOKUP($A13,_4[],K$1,FALSE),0)+IFERROR(VLOOKUP($A13,_5[],K$1,FALSE),0) -> 20 | L13: =IF(Cumul_emp[[#This Row],[Colonne9]]>0,Cumul_emp[[#This Row],[Colonne9]]/Cumul_emp[[#This Row],[Colonne11]],0) -> 32.5 | M13: =IFERROR(VLOOKUP($A13,_2[],M$1,FALSE),0)+IFERROR(VLOOKUP($A13,_3[],M$1,FALSE),0)+IFERROR(VLOOKUP($A13,_4[],M$1,FALSE),0)+IFERROR(VLOOKUP($A13,_5[],M$1,FALSE),0) -> 0 | N13: =IFERROR(VLOOKUP($A13,_2[],N$1,FALSE),0)+IFERROR(VLOOKUP($A13,_3[],N$1,FALSE),0)+IFERROR(VLOOKUP($A13,_4[],N$1,FALSE),0)+IFERROR(VLOOKUP($A13,_5[],N$1,FALSE),0) -> 5 | O13: =IFERROR(VLOOKUP($A13,_2[],O$1,FALSE),0)+IFERROR(VLOOKUP($A13,_3[],O$1,FALSE),0)+IFERROR(VLOOKUP($A13,_4[],O$1,FALSE),0)+IFERROR(VLOOKUP($A13,_5[],O$1,FALSE),0) -> 0 | P13: =IFERROR(VLOOKUP($A13,_2[],P$1,FALSE),0)+IFERROR(VLOOKUP($A13,_3[],P$1,FALSE),0)+IFERROR(VLOOKUP($A13,_4[],P$1,FALSE),0)+IFERROR(VLOOKUP($A13,_5[],P$1,FALSE),0) -> 5 | Q13: =IFERROR(VLOOKUP($A13,_2[],Q$1,FALSE),0)+IFERROR(VLOOKUP($A13,_3[],Q$1,FALSE),0)+IFERROR(VLOOKUP($A13,_4[],Q$1,FALSE),0)+IFERROR(VLOOKUP($A13,_5[],Q$1,FALSE),0) -> 10 | R13: =IFERROR(VLOOKUP($A13,_2[],R$1,FALSE),0)+IFERROR(VLOOKUP($A13,_3[],R$1,FALSE),0)+IFERROR(VLOOKUP($A13,_4[],R$1,FALSE),0)+IFERROR(VLOOKUP($A13,_5[],R$1,FALSE),0) -> 0 | S13: À vérifier
A14: 8 | B14: Employer C | C14: =IFERROR(VLOOKUP($A14,_2[],C$1,FALSE),0)+IFERROR(VLOOKUP($A14,_3[],C$1,FALSE),0)+IFERROR(VLOOKUP($A14,_4[],C$1,FALSE),0)+IFERROR(VLOOKUP($A14,_5[],C$1,FALSE),0) -> 2920 | D14: =IFERROR(VLOOKUP($A14,_2[],D$1,FALSE),0)+IFERROR(VLOOKUP($A14,_3[],D$1,FALSE),0)+IFERROR(VLOOKUP($A14,_4[],D$1,FALSE),0)+IFERROR(VLOOKUP($A14,_5[],D$1,FALSE),0) -> 15 | E14: =IFERROR(VLOOKUP($A14,_2[],E$1,FALSE),0)+IFERROR(VLOOKUP($A14,_3[],E$1,FALSE),0)+IFERROR(VLOOKUP($A14,_4[],E$1,FALSE),0)+IFERROR(VLOOKUP($A14,_5[],E$1,FALSE),0) -> 0 | F14: =IFERROR(VLOOKUP($A14,_2[],F$1,FALSE),0)+IFERROR(VLOOKUP($A14,_3[],F$1,FALSE),0)+IFERROR(VLOOKUP($A14,_4[],F$1,FALSE),0)+IFERROR(VLOOKUP($A14,_5[],F$1,FALSE),0) -> 75 | G14: =IFERROR(VLOOKUP($A14,_2[],G$1,FALSE),0)+IFERROR(VLOOKUP($A14,_3[],G$1,FALSE),0)+IFERROR(VLOOKUP($A14,_4[],G$1,FALSE),0)+IFERROR(VLOOKUP($A14,_5[],G$1,FALSE),0) -> 0 | H14: =IFERROR(VLOOKUP($A14,_2[],H$1,FALSE),0)+IFERROR(VLOOKUP($A14,_3[],H$1,FALSE),0)+IFERROR(VLOOKUP($A14,_4[],H$1,FALSE),0)+IFERROR(VLOOKUP($A14,_5[],H$1,FALSE),0) -> 2980 | I14: =IFERROR(VLOOKUP($A14,_2[],I$1,FALSE),0)+IFERROR(VLOOKUP($A14,_3[],I$1,FALSE),0)+IFERROR(VLOOKUP($A14,_4[],I$1,FALSE),0)+IFERROR(VLOOKUP($A14,_5[],I$1,FALSE),0) -> 0 | J14: =IFERROR(VLOOKUP($A14,_2[],J$1,FALSE),0)+IFERROR(VLOOKUP($A14,_3[],J$1,FALSE),0)+IFERROR(VLOOKUP($A14,_4[],J$1,FALSE),0)+IFERROR(VLOOKUP($A14,_5[],J$1,FALSE),0) -> 2980 | K14: =IFERROR(VLOOKUP($A14,_2[],K$1,FALSE),0)+IFERROR(VLOOKUP($A14,_3[],K$1,FALSE),0)+IFERROR(VLOOKUP($A14,_4[],K$1,FALSE),0)+IFERROR(VLOOKUP($A14,_5[],K$1,FALSE),0) -> 30 | L14: =IF(Cumul_emp[[#This Row],[Colonne9]]>0,Cumul_emp[[#This Row],[Colonne9]]/Cumul_emp[[#This Row],[Colonne11]],0) -> 0 | M14: =IFERROR(VLOOKUP($A14,_2[],M$1,FALSE),0)+IFERROR(VLOOKUP($A14,_3[],M$1,FALSE),0)+IFERROR(VLOOKUP($A14,_4[],M$1,FALSE),0)+IFERROR(VLOOKUP($A14,_5[],M$1,FALSE),0) -> 10 | N14: =IFERROR(VLOOKUP($A14,_2[],N$1,FALSE),0)+IFERROR(VLOOKUP($A14,_3[],N$1,FALSE),0)+IFERROR(VLOOKUP($A14,_4[],N$1,FALSE),0)+IFERROR(VLOOKUP($A14,_5[],N$1,FALSE),0) -> 15 | O14: =IFERROR(VLOOKUP($A14,_2[],O$1,FALSE),0)+IFERROR(VLOOKUP($A14,_3[],O$1,FALSE),0)+IFERROR(VLOOKUP($A14,_4[],O$1,FALSE),0)+IFERROR(VLOOKUP($A14,_5[],O$1,FALSE),0) -> 0 | P14: =IFERROR(VLOOKUP($A14,_2[],P$1,FALSE),0)+IFERROR(VLOOKUP($A14,_3[],P$1,FALSE),0)+IFERROR(VLOOKUP($A14,_4[],P$1,FALSE),0)+IFERROR(VLOOKUP($A14,_5[],P$1,FALSE),0) -> 0 | Q14: =IFERROR(VLOOKUP($A14,_2[],Q$1,FALSE),0)+IFERROR(VLOOKUP($A14,_3[],Q$1,FALSE),0)+IFERROR(VLOOKUP($A14,_4[],Q$1,FALSE),0)+IFERROR(VLOOKUP($A14,_5[],Q$1,FALSE),0) -> 0 | R14: =IFERROR(VLOOKUP($A14,_2[],R$1,FALSE),0)+IFERROR(VLOOKUP($A14,_3[],R$1,FALSE),0)+IFERROR(VLOOKUP($A14,_4[],R$1,FALSE),0)+IFERROR(VLOOKUP($A14,_5[],R$1,FALSE),0) -> 5 | S14: À vérifier
C15: =IFERROR(VLOOKUP($A15,_2[],C$1,FALSE),0)+IFERROR(VLOOKUP($A15,_3[],C$1,FALSE),0)+IFERROR(VLOOKUP($A15,_4[],C$1,FALSE),0)+IFERROR(VLOOKUP($A15,_5[],C$1,FALSE),0) -> 0 | D15: =IFERROR(VLOOKUP($A15,_2[],D$1,FALSE),0)+IFERROR(VLOOKUP($A15,_3[],D$1,FALSE),0)+IFERROR(VLOOKUP($A15,_4[],D$1,FALSE),0)+IFERROR(VLOOKUP($A15,_5[],D$1,FALSE),0) -> 0 | E15: =IFERROR(VLOOKUP($A15,_2[],E$1,FALSE),0)+IFERROR(VLOOKUP($A15,_3[],E$1,FALSE),0)+IFERROR(VLOOKUP($A15,_4[],E$1,FALSE),0)+IFERROR(VLOOKUP($A15,_5[],E$1,FALSE),0) -> 0 | F15: =IFERROR(VLOOKUP($A15,_2[],F$1,FALSE),0)+IFERROR(VLOOKUP($A15,_3[],F$1,FALSE),0)+IFERROR(VLOOKUP($A15,_4[],F$1,FALSE),0)+IFERROR(VLOOKUP($A15,_5[],F$1,FALSE),0) -> 0 | G15: =IFERROR(VLOOKUP($A15,_2[],G$1,FALSE),0)+IFERROR(VLOOKUP($A15,_3[],G$1,FALSE),0)+IFERROR(VLOOKUP($A15,_4[],G$1,FALSE),0)+IFERROR(VLOOKUP($A15,_5[],G$1,FALSE),0) -> 0 | H15: =IFERROR(VLOOKUP($A15,_2[],H$1,FALSE),0)+IFERROR(VLOOKUP($A15,_3[],H$1,FALSE),0)+IFERROR(VLOOKUP($A15,_4[],H$1,FALSE),0)+IFERROR(VLOOKUP($A15,_5[],H$1,FALSE),0) -> 0 | I15: =IFERROR(VLOOKUP($A15,_2[],I$1,FALSE),0)+IFERROR(VLOOKUP($A15,_3[],I$1,FALSE),0)+IFERROR(VLOOKUP($A15,_4[],I$1,FALSE),0)+IFERROR(VLOOKUP($A15,_5[],I$1,FALSE),0) -> 0 | J15: =IFERROR(VLOOKUP($A15,_2[],J$1,FALSE),0)+IFERROR(VLOOKUP($A15,_3[],J$1,FALSE),0)+IFERROR(VLOOKUP($A15,_4[],J$1,FALSE),0)+IFERROR(VLOOKUP($A15,_5[],J$1,FALSE),0) -> 0 | K15: =IFERROR(VLOOKUP($A15,_2[],K$1,FALSE),0)+IFERROR(VLOOKUP($A15,_3[],K$1,FALSE),0)+IFERROR(VLOOKUP($A15,_4[],K$1,FALSE),0)+IFERROR(VLOOKUP($A15,_5[],K$1,FALSE),0) -> 0 | L15: =IF(Cumul_emp[[#This Row],[Colonne9]]>0,Cumul_emp[[#This Row],[Colonne9]]/Cumul_emp[[#This Row],[Colonne11]],0) -> 0 | M15: =IFERROR(VLOOKUP($A15,_2[],M$1,FALSE),0)+IFERROR(VLOOKUP($A15,_3[],M$1,FALSE),0)+IFERROR(VLOOKUP($A15,_4[],M$1,FALSE),0)+IFERROR(VLOOKUP($A15,_5[],M$1,FALSE),0) -> 0 | N15: =IFERROR(VLOOKUP($A15,_2[],N$1,FALSE),0)+IFERROR(VLOOKUP($A15,_3[],N$1,FALSE),0)+IFERROR(VLOOKUP($A15,_4[],N$1,FALSE),0)+IFERROR(VLOOKUP($A15,_5[],N$1,FALSE),0) -> 0 | O15: =IFERROR(VLOOKUP($A15,_2[],O$1,FALSE),0)+IFERROR(VLOOKUP($A15,_3[],O$1,FALSE),0)+IFERROR(VLOOKUP($A15,_4[],O$1,FALSE),0)+IFERROR(VLOOKUP($A15,_5[],O$1,FALSE),0) -> 0 | P15: =IFERROR(VLOOKUP($A15,_2[],P$1,FALSE),0)+IFERROR(VLOOKUP($A15,_3[],P$1,FALSE),0)+IFERROR(VLOOKUP($A15,_4[],P$1,FALSE),0)+IFERROR(VLOOKUP($A15,_5[],P$1,FALSE),0) -> 0 | Q15: =IFERROR(VLOOKUP($A15,_2[],Q$1,FALSE),0)+IFERROR(VLOOKUP($A15,_3[],Q$1,FALSE),0)+IFERROR(VLOOKUP($A15,_4[],Q$1,FALSE),0)+IFERROR(VLOOKUP($A15,_5[],Q$1,FALSE),0) -> 0 | R15: =IFERROR(VLOOKUP($A15,_2[],R$1,FALSE),0)+IFERROR(VLOOKUP($A15,_3[],R$1,FALSE),0)+IFERROR(VLOOKUP($A15,_4[],R$1,FALSE),0)+IFERROR(VLOOKUP($A15,_5[],R$1,FALSE),0) -> 0
C16: =IFERROR(VLOOKUP($A16,_2[],C$1,FALSE),0)+IFERROR(VLOOKUP($A16,_3[],C$1,FALSE),0)+IFERROR(VLOOKUP($A16,_4[],C$1,FALSE),0)+IFERROR(VLOOKUP($A16,_5[],C$1,FALSE),0) -> 0 | D16: =IFERROR(VLOOKUP($A16,_2[],D$1,FALSE),0)+IFERROR(VLOOKUP($A16,_3[],D$1,FALSE),0)+IFERROR(VLOOKUP($A16,_4[],D$1,FALSE),0)+IFERROR(VLOOKUP($A16,_5[],D$1,FALSE),0) -> 0 | E16: =IFERROR(VLOOKUP($A16,_2[],E$1,FALSE),0)+IFERROR(VLOOKUP($A16,_3[],E$1,FALSE),0)+IFERROR(VLOOKUP($A16,_4[],E$1,FALSE),0)+IFERROR(VLOOKUP($A16,_5[],E$1,FALSE),0) -> 0 | F16: =IFERROR(VLOOKUP($A16,_2[],F$1,FALSE),0)+IFERROR(VLOOKUP($A16,_3[],F$1,FALSE),0)+IFERROR(VLOOKUP($A16,_4[],F$1,FALSE),0)+IFERROR(VLOOKUP($A16,_5[],F$1,FALSE),0) -> 0 | G16: =IFERROR(VLOOKUP($A16,_2[],G$1,FALSE),0)+IFERROR(VLOOKUP($A16,_3[],G$1,FALSE),0)+IFERROR(VLOOKUP($A16,_4[],G$1,FALSE),0)+IFERROR(VLOOKUP($A16,_5[],G$1,FALSE),0) -> 0 | H16: =IFERROR(VLOOKUP($A16,_2[],H$1,FALSE),0)+IFERROR(VLOOKUP($A16,_3[],H$1,FALSE),0)+IFERROR(VLOOKUP($A16,_4[],H$1,FALSE),0)+IFERROR(VLOOKUP($A16,_5[],H$1,FALSE),0) -> 0 | I16: =IFERROR(VLOOKUP($A16,_2[],I$1,FALSE),0)+IFERROR(VLOOKUP($A16,_3[],I$1,FALSE),0)+IFERROR(VLOOKUP($A16,_4[],I$1,FALSE),0)+IFERROR(VLOOKUP($A16,_5[],I$1,FALSE),0) -> 0 | J16: =IFERROR(VLOOKUP($A16,_2[],J$1,FALSE),0)+IFERROR(VLOOKUP($A16,_3[],J$1,FALSE),0)+IFERROR(VLOOKUP($A16,_4[],J$1,FALSE),0)+IFERROR(VLOOKUP($A16,_5[],J$1,FALSE),0) -> 0 | K16: =IFERROR(VLOOKUP($A16,_2[],K$1,FALSE),0)+IFERROR(VLOOKUP($A16,_3[],K$1,FALSE),0)+IFERROR(VLOOKUP($A16,_4[],K$1,FALSE),0)+IFERROR(VLOOKUP($A16,_5[],K$1,FALSE),0) -> 0 | L16: =IF(Cumul_emp[[#This Row],[Colonne9]]>0,Cumul_emp[[#This Row],[Colonne9]]/Cumul_emp[[#This Row],[Colonne11]],0) -> 0 | M16: =IFERROR(VLOOKUP($A16,_2[],M$1,FALSE),0)+IFERROR(VLOOKUP($A16,_3[],M$1,FALSE),0)+IFERROR(VLOOKUP($A16,_4[],M$1,FALSE),0)+IFERROR(VLOOKUP($A16,_5[],M$1,FALSE),0) -> 0 | N16: =IFERROR(VLOOKUP($A16,_2[],N$1,FALSE),0)+IFERROR(VLOOKUP($A16,_3[],N$1,FALSE),0)+IFERROR(VLOOKUP($A16,_4[],N$1,FALSE),0)+IFERROR(VLOOKUP($A16,_5[],N$1,FALSE),0) -> 0 | O16: =IFERROR(VLOOKUP($A16,_2[],O$1,FALSE),0)+IFERROR(VLOOKUP($A16,_3[],O$1,FALSE),0)+IFERROR(VLOOKUP($A16,_4[],O$1,FALSE),0)+IFERROR(VLOOKUP($A16,_5[],O$1,FALSE),0) -> 0 | P16: =IFERROR(VLOOKUP($A16,_2[],P$1,FALSE),0)+IFERROR(VLOOKUP($A16,_3[],P$1,FALSE),0)+IFERROR(VLOOKUP($A16,_4[],P$1,FALSE),0)+IFERROR(VLOOKUP($A16,_5[],P$1,FALSE),0) -> 0 | Q16: =IFERROR(VLOOKUP($A16,_2[],Q$1,FALSE),0)+IFERROR(VLOOKUP($A16,_3[],Q$1,FALSE),0)+IFERROR(VLOOKUP($A16,_4[],Q$1,FALSE),0)+IFERROR(VLOOKUP($A16,_5[],Q$1,FALSE),0) -> 0 | R16: =IFERROR(VLOOKUP($A16,_2[],R$1,FALSE),0)+IFERROR(VLOOKUP($A16,_3[],R$1,FALSE),0)+IFERROR(VLOOKUP($A16,_4[],R$1,FALSE),0)+IFERROR(VLOOKUP($A16,_5[],R$1,FALSE),0) -> 0
B17: =IF(A17="","",VLOOKUP(A17,Nom_employé,2,FALSE)) ->  | C17: =IFERROR(VLOOKUP($A17,_2[],C$1,FALSE),0)+IFERROR(VLOOKUP($A17,_3[],C$1,FALSE),0)+IFERROR(VLOOKUP($A17,_4[],C$1,FALSE),0)+IFERROR(VLOOKUP($A17,_5[],C$1,FALSE),0) -> 0 | D17: =IFERROR(VLOOKUP($A17,_2[],D$1,FALSE),0)+IFERROR(VLOOKUP($A17,_3[],D$1,FALSE),0)+IFERROR(VLOOKUP($A17,_4[],D$1,FALSE),0)+IFERROR(VLOOKUP($A17,_5[],D$1,FALSE),0) -> 0 | E17: =IFERROR(VLOOKUP($A17,_2[],E$1,FALSE),0)+IFERROR(VLOOKUP($A17,_3[],E$1,FALSE),0)+IFERROR(VLOOKUP($A17,_4[],E$1,FALSE),0)+IFERROR(VLOOKUP($A17,_5[],E$1,FALSE),0) -> 0 | F17: =IFERROR(VLOOKUP($A17,_2[],F$1,FALSE),0)+IFERROR(VLOOKUP($A17,_3[],F$1,FALSE),0)+IFERROR(VLOOKUP($A17,_4[],F$1,FALSE),0)+IFERROR(VLOOKUP($A17,_5[],F$1,FALSE),0) -> 0 | G17: =IFERROR(VLOOKUP($A17,_2[],G$1,FALSE),0)+IFERROR(VLOOKUP($A17,_3[],G$1,FALSE),0)+IFERROR(VLOOKUP($A17,_4[],G$1,FALSE),0)+IFERROR(VLOOKUP($A17,_5[],G$1,FALSE),0) -> 0 | H17: =IFERROR(VLOOKUP($A17,_2[],H$1,FALSE),0)+IFERROR(VLOOKUP($A17,_3[],H$1,FALSE),0)+IFERROR(VLOOKUP($A17,_4[],H$1,FALSE),0)+IFERROR(VLOOKUP($A17,_5[],H$1,FALSE),0) -> 0 | I17: =IFERROR(VLOOKUP($A17,_2[],I$1,FALSE),0)+IFERROR(VLOOKUP($A17,_3[],I$1,FALSE),0)+IFERROR(VLOOKUP($A17,_4[],I$1,FALSE),0)+IFERROR(VLOOKUP($A17,_5[],I$1,FALSE),0) -> 0 | J17: =IFERROR(VLOOKUP($A17,_2[],J$1,FALSE),0)+IFERROR(VLOOKUP($A17,_3[],J$1,FALSE),0)+IFERROR(VLOOKUP($A17,_4[],J$1,FALSE),0)+IFERROR(VLOOKUP($A17,_5[],J$1,FALSE),0) -> 0 | K17: =IFERROR(VLOOKUP($A17,_2[],K$1,FALSE),0)+IFERROR(VLOOKUP($A17,_3[],K$1,FALSE),0)+IFERROR(VLOOKUP($A17,_4[],K$1,FALSE),0)+IFERROR(VLOOKUP($A17,_5[],K$1,FALSE),0) -> 0 | L17: =IF(Cumul_emp[[#This Row],[Colonne9]]>0,Cumul_emp[[#This Row],[Colonne9]]/Cumul_emp[[#This Row],[Colonne11]],0) -> 0 | M17: =IFERROR(VLOOKUP($A17,_2[],M$1,FALSE),0)+IFERROR(VLOOKUP($A17,_3[],M$1,FALSE),0)+IFERROR(VLOOKUP($A17,_4[],M$1,FALSE),0)+IFERROR(VLOOKUP($A17,_5[],M$1,FALSE),0) -> 0 | N17: =IFERROR(VLOOKUP($A17,_2[],N$1,FALSE),0)+IFERROR(VLOOKUP($A17,_3[],N$1,FALSE),0)+IFERROR(VLOOKUP($A17,_4[],N$1,FALSE),0)+IFERROR(VLOOKUP($A17,_5[],N$1,FALSE),0) -> 0 | O17: =IFERROR(VLOOKUP($A17,_2[],O$1,FALSE),0)+IFERROR(VLOOKUP($A17,_3[],O$1,FALSE),0)+IFERROR(VLOOKUP($A17,_4[],O$1,FALSE),0)+IFERROR(VLOOKUP($A17,_5[],O$1,FALSE),0) -> 0 | P17: =IFERROR(VLOOKUP($A17,_2[],P$1,FALSE),0)+IFERROR(VLOOKUP($A17,_3[],P$1,FALSE),0)+IFERROR(VLOOKUP($A17,_4[],P$1,FALSE),0)+IFERROR(VLOOKUP($A17,_5[],P$1,FALSE),0) -> 0 | Q17: =IFERROR(VLOOKUP($A17,_2[],Q$1,FALSE),0)+IFERROR(VLOOKUP($A17,_3[],Q$1,FALSE),0)+IFERROR(VLOOKUP($A17,_4[],Q$1,FALSE),0)+IFERROR(VLOOKUP($A17,_5[],Q$1,FALSE),0) -> 0 | R17: =IFERROR(VLOOKUP($A17,_2[],R$1,FALSE),0)+IFERROR(VLOOKUP($A17,_3[],R$1,FALSE),0)+IFERROR(VLOOKUP($A17,_4[],R$1,FALSE),0)+IFERROR(VLOOKUP($A17,_5[],R$1,FALSE),0) -> 0 | S17: =IF(T17="EX","OK validé",(IF(A17="","",IF(SUM(M17+N17+O17+P17+Q17+R17)<>J17,"À vérifier","OK validé")))) -> 
C18: =IFERROR(VLOOKUP($A18,_2[],C$1,FALSE),0)+IFERROR(VLOOKUP($A18,_3[],C$1,FALSE),0)+IFERROR(VLOOKUP($A18,_4[],C$1,FALSE),0)+IFERROR(VLOOKUP($A18,_5[],C$1,FALSE),0) -> 0 | D18: =IFERROR(VLOOKUP($A18,_2[],D$1,FALSE),0)+IFERROR(VLOOKUP($A18,_3[],D$1,FALSE),0)+IFERROR(VLOOKUP($A18,_4[],D$1,FALSE),0)+IFERROR(VLOOKUP($A18,_5[],D$1,FALSE),0) -> 0 | E18: =IFERROR(VLOOKUP($A18,_2[],E$1,FALSE),0)+IFERROR(VLOOKUP($A18,_3[],E$1,FALSE),0)+IFERROR(VLOOKUP($A18,_4[],E$1,FALSE),0)+IFERROR(VLOOKUP($A18,_5[],E$1,FALSE),0) -> 0 | F18: =IFERROR(VLOOKUP($A18,_2[],F$1,FALSE),0)+IFERROR(VLOOKUP($A18,_3[],F$1,FALSE),0)+IFERROR(VLOOKUP($A18,_4[],F$1,FALSE),0)+IFERROR(VLOOKUP($A18,_5[],F$1,FALSE),0) -> 0 | G18: =IFERROR(VLOOKUP($A18,_2[],G$1,FALSE),0)+IFERROR(VLOOKUP($A18,_3[],G$1,FALSE),0)+IFERROR(VLOOKUP($A18,_4[],G$1,FALSE),0)+IFERROR(VLOOKUP($A18,_5[],G$1,FALSE),0) -> 0 | H18: =IFERROR(VLOOKUP($A18,_2[],H$1,FALSE),0)+IFERROR(VLOOKUP($A18,_3[],H$1,FALSE),0)+IFERROR(VLOOKUP($A18,_4[],H$1,FALSE),0)+IFERROR(VLOOKUP($A18,_5[],H$1,FALSE),0) -> 0 | I18: =IFERROR(VLOOKUP($A18,_2[],I$1,FALSE),0)+IFERROR(VLOOKUP($A18,_3[],I$1,FALSE),0)+IFERROR(VLOOKUP($A18,_4[],I$1,FALSE),0)+IFERROR(VLOOKUP($A18,_5[],I$1,FALSE),0) -> 0 | J18: =IFERROR(VLOOKUP($A18,_2[],J$1,FALSE),0)+IFERROR(VLOOKUP($A18,_3[],J$1,FALSE),0)+IFERROR(VLOOKUP($A18,_4[],J$1,FALSE),0)+IFERROR(VLOOKUP($A18,_5[],J$1,FALSE),0) -> 0 | K18: =IFERROR(VLOOKUP($A18,_2[],K$1,FALSE),0)+IFERROR(VLOOKUP($A18,_3[],K$1,FALSE),0)+IFERROR(VLOOKUP($A18,_4[],K$1,FALSE),0)+IFERROR(VLOOKUP($A18,_5[],K$1,FALSE),0) -> 0 | L18: =IF(Cumul_emp[[#This Row],[Colonne9]]>0,Cumul_emp[[#This Row],[Colonne9]]/Cumul_emp[[#This Row],[Colonne11]],0) -> 0 | M18: =IFERROR(VLOOKUP($A18,_2[],M$1,FALSE),0)+IFERROR(VLOOKUP($A18,_3[],M$1,FALSE),0)+IFERROR(VLOOKUP($A18,_4[],M$1,FALSE),0)+IFERROR(VLOOKUP($A18,_5[],M$1,FALSE),0) -> 0 | N18: =IFERROR(VLOOKUP($A18,_2[],N$1,FALSE),0)+IFERROR(VLOOKUP($A18,_3[],N$1,FALSE),0)+IFERROR(VLOOKUP($A18,_4[],N$1,FALSE),0)+IFERROR(VLOOKUP($A18,_5[],N$1,FALSE),0) -> 0 | O18: =IFERROR(VLOOKUP($A18,_2[],O$1,FALSE),0)+IFERROR(VLOOKUP($A18,_3[],O$1,FALSE),0)+IFERROR(VLOOKUP($A18,_4[],O$1,FALSE),0)+IFERROR(VLOOKUP($A18,_5[],O$1,FALSE),0) -> 0 | P18: =IFERROR(VLOOKUP($A18,_2[],P$1,FALSE),0)+IFERROR(VLOOKUP($A18,_3[],P$1,FALSE),0)+IFERROR(VLOOKUP($A18,_4[],P$1,FALSE),0)+IFERROR(VLOOKUP($A18,_5[],P$1,FALSE),0) -> 0 | Q18: =IFERROR(VLOOKUP($A18,_2[],Q$1,FALSE),0)+IFERROR(VLOOKUP($A18,_3[],Q$1,FALSE),0)+IFERROR(VLOOKUP($A18,_4[],Q$1,FALSE),0)+IFERROR(VLOOKUP($A18,_5[],Q$1,FALSE),0) -> 0 | R18: =IFERROR(VLOOKUP($A18,_2[],R$1,FALSE),0)+IFERROR(VLOOKUP($A18,_3[],R$1,FALSE),0)+IFERROR(VLOOKUP($A18,_4[],R$1,FALSE),0)+IFERROR(VLOOKUP($A18,_5[],R$1,FALSE),0) -> 0
C19: =IFERROR(VLOOKUP($A19,_2[],C$1,FALSE),0)+IFERROR(VLOOKUP($A19,_3[],C$1,FALSE),0)+IFERROR(VLOOKUP($A19,_4[],C$1,FALSE),0)+IFERROR(VLOOKUP($A19,_5[],C$1,FALSE),0) -> 0 | D19: =IFERROR(VLOOKUP($A19,_2[],D$1,FALSE),0)+IFERROR(VLOOKUP($A19,_3[],D$1,FALSE),0)+IFERROR(VLOOKUP($A19,_4[],D$1,FALSE),0)+IFERROR(VLOOKUP($A19,_5[],D$1,FALSE),0) -> 0 | E19: =IFERROR(VLOOKUP($A19,_2[],E$1,FALSE),0)+IFERROR(VLOOKUP($A19,_3[],E$1,FALSE),0)+IFERROR(VLOOKUP($A19,_4[],E$1,FALSE),0)+IFERROR(VLOOKUP($A19,_5[],E$1,FALSE),0) -> 0 | F19: =IFERROR(VLOOKUP($A19,_2[],F$1,FALSE),0)+IFERROR(VLOOKUP($A19,_3[],F$1,FALSE),0)+IFERROR(VLOOKUP($A19,_4[],F$1,FALSE),0)+IFERROR(VLOOKUP($A19,_5[],F$1,FALSE),0) -> 0 | G19: =IFERROR(VLOOKUP($A19,_2[],G$1,FALSE),0)+IFERROR(VLOOKUP($A19,_3[],G$1,FALSE),0)+IFERROR(VLOOKUP($A19,_4[],G$1,FALSE),0)+IFERROR(VLOOKUP($A19,_5[],G$1,FALSE),0) -> 0 | H19: =IFERROR(VLOOKUP($A19,_2[],H$1,FALSE),0)+IFERROR(VLOOKUP($A19,_3[],H$1,FALSE),0)+IFERROR(VLOOKUP($A19,_4[],H$1,FALSE),0)+IFERROR(VLOOKUP($A19,_5[],H$1,FALSE),0) -> 0 | I19: =IFERROR(VLOOKUP($A19,_2[],I$1,FALSE),0)+IFERROR(VLOOKUP($A19,_3[],I$1,FALSE),0)+IFERROR(VLOOKUP($A19,_4[],I$1,FALSE),0)+IFERROR(VLOOKUP($A19,_5[],I$1,FALSE),0) -> 0 | J19: =IFERROR(VLOOKUP($A19,_2[],J$1,FALSE),0)+IFERROR(VLOOKUP($A19,_3[],J$1,FALSE),0)+IFERROR(VLOOKUP($A19,_4[],J$1,FALSE),0)+IFERROR(VLOOKUP($A19,_5[],J$1,FALSE),0) -> 0 | K19: =IFERROR(VLOOKUP($A19,_2[],K$1,FALSE),0)+IFERROR(VLOOKUP($A19,_3[],K$1,FALSE),0)+IFERROR(VLOOKUP($A19,_4[],K$1,FALSE),0)+IFERROR(VLOOKUP($A19,_5[],K$1,FALSE),0) -> 0 | L19: =IF(Cumul_emp[[#This Row],[Colonne9]]>0,Cumul_emp[[#This Row],[Colonne9]]/Cumul_emp[[#This Row],[Colonne11]],0) -> 0 | M19: =IFERROR(VLOOKUP($A19,_2[],M$1,FALSE),0)+IFERROR(VLOOKUP($A19,_3[],M$1,FALSE),0)+IFERROR(VLOOKUP($A19,_4[],M$1,FALSE),0)+IFERROR(VLOOKUP($A19,_5[],M$1,FALSE),0) -> 0 | N19: =IFERROR(VLOOKUP($A19,_2[],N$1,FALSE),0)+IFERROR(VLOOKUP($A19,_3[],N$1,FALSE),0)+IFERROR(VLOOKUP($A19,_4[],N$1,FALSE),0)+IFERROR(VLOOKUP($A19,_5[],N$1,FALSE),0) -> 0 | O19: =IFERROR(VLOOKUP($A19,_2[],O$1,FALSE),0)+IFERROR(VLOOKUP($A19,_3[],O$1,FALSE),0)+IFERROR(VLOOKUP($A19,_4[],O$1,FALSE),0)+IFERROR(VLOOKUP($A19,_5[],O$1,FALSE),0) -> 0 | P19: =IFERROR(VLOOKUP($A19,_2[],P$1,FALSE),0)+IFERROR(VLOOKUP($A19,_3[],P$1,FALSE),0)+IFERROR(VLOOKUP($A19,_4[],P$1,FALSE),0)+IFERROR(VLOOKUP($A19,_5[],P$1,FALSE),0) -> 0 | Q19: =IFERROR(VLOOKUP($A19,_2[],Q$1,FALSE),0)+IFERROR(VLOOKUP($A19,_3[],Q$1,FALSE),0)+IFERROR(VLOOKUP($A19,_4[],Q$1,FALSE),0)+IFERROR(VLOOKUP($A19,_5[],Q$1,FALSE),0) -> 0 | R19: =IFERROR(VLOOKUP($A19,_2[],R$1,FALSE),0)+IFERROR(VLOOKUP($A19,_3[],R$1,FALSE),0)+IFERROR(VLOOKUP($A19,_4[],R$1,FALSE),0)+IFERROR(VLOOKUP($A19,_5[],R$1,FALSE),0) -> 0
C20: =IFERROR(VLOOKUP($A20,_2[],C$1,FALSE),0)+IFERROR(VLOOKUP($A20,_3[],C$1,FALSE),0)+IFERROR(VLOOKUP($A20,_4[],C$1,FALSE),0)+IFERROR(VLOOKUP($A20,_5[],C$1,FALSE),0) -> 0 | D20: =IFERROR(VLOOKUP($A20,_2[],D$1,FALSE),0)+IFERROR(VLOOKUP($A20,_3[],D$1,FALSE),0)+IFERROR(VLOOKUP($A20,_4[],D$1,FALSE),0)+IFERROR(VLOOKUP($A20,_5[],D$1,FALSE),0) -> 0 | E20: =IFERROR(VLOOKUP($A20,_2[],E$1,FALSE),0)+IFERROR(VLOOKUP($A20,_3[],E$1,FALSE),0)+IFERROR(VLOOKUP($A20,_4[],E$1,FALSE),0)+IFERROR(VLOOKUP($A20,_5[],E$1,FALSE),0) -> 0 | F20: =IFERROR(VLOOKUP($A20,_2[],F$1,FALSE),0)+IFERROR(VLOOKUP($A20,_3[],F$1,FALSE),0)+IFERROR(VLOOKUP($A20,_4[],F$1,FALSE),0)+IFERROR(VLOOKUP($A20,_5[],F$1,FALSE),0) -> 0 | G20: =IFERROR(VLOOKUP($A20,_2[],G$1,FALSE),0)+IFERROR(VLOOKUP($A20,_3[],G$1,FALSE),0)+IFERROR(VLOOKUP($A20,_4[],G$1,FALSE),0)+IFERROR(VLOOKUP($A20,_5[],G$1,FALSE),0) -> 0 | H20: =IFERROR(VLOOKUP($A20,_2[],H$1,FALSE),0)+IFERROR(VLOOKUP($A20,_3[],H$1,FALSE),0)+IFERROR(VLOOKUP($A20,_4[],H$1,FALSE),0)+IFERROR(VLOOKUP($A20,_5[],H$1,FALSE),0) -> 0 | I20: =IFERROR(VLOOKUP($A20,_2[],I$1,FALSE),0)+IFERROR(VLOOKUP($A20,_3[],I$1,FALSE),0)+IFERROR(VLOOKUP($A20,_4[],I$1,FALSE),0)+IFERROR(VLOOKUP($A20,_5[],I$1,FALSE),0) -> 0 | J20: =IFERROR(VLOOKUP($A20,_2[],J$1,FALSE),0)+IFERROR(VLOOKUP($A20,_3[],J$1,FALSE),0)+IFERROR(VLOOKUP($A20,_4[],J$1,FALSE),0)+IFERROR(VLOOKUP($A20,_5[],J$1,FALSE),0) -> 0 | K20: =IFERROR(VLOOKUP($A20,_2[],K$1,FALSE),0)+IFERROR(VLOOKUP($A20,_3[],K$1,FALSE),0)+IFERROR(VLOOKUP($A20,_4[],K$1,FALSE),0)+IFERROR(VLOOKUP($A20,_5[],K$1,FALSE),0) -> 0 | L20: =IF(Cumul_emp[[#This Row],[Colonne9]]>0,Cumul_emp[[#This Row],[Colonne9]]/Cumul_emp[[#This Row],[Colonne11]],0) -> 0 | M20: =IFERROR(VLOOKUP($A20,_2[],M$1,FALSE),0)+IFERROR(VLOOKUP($A20,_3[],M$1,FALSE),0)+IFERROR(VLOOKUP($A20,_4[],M$1,FALSE),0)+IFERROR(VLOOKUP($A20,_5[],M$1,FALSE),0) -> 0 | N20: =IFERROR(VLOOKUP($A20,_2[],N$1,FALSE),0)+IFERROR(VLOOKUP($A20,_3[],N$1,FALSE),0)+IFERROR(VLOOKUP($A20,_4[],N$1,FALSE),0)+IFERROR(VLOOKUP($A20,_5[],N$1,FALSE),0) -> 0 | O20: =IFERROR(VLOOKUP($A20,_2[],O$1,FALSE),0)+IFERROR(VLOOKUP($A20,_3[],O$1,FALSE),0)+IFERROR(VLOOKUP($A20,_4[],O$1,FALSE),0)+IFERROR(VLOOKUP($A20,_5[],O$1,FALSE),0) -> 0 | P20: =IFERROR(VLOOKUP($A20,_2[],P$1,FALSE),0)+IFERROR(VLOOKUP($A20,_3[],P$1,FALSE),0)+IFERROR(VLOOKUP($A20,_4[],P$1,FALSE),0)+IFERROR(VLOOKUP($A20,_5[],P$1,FALSE),0) -> 0 | Q20: =IFERROR(VLOOKUP($A20,_2[],Q$1,FALSE),0)+IFERROR(VLOOKUP($A20,_3[],Q$1,FALSE),0)+IFERROR(VLOOKUP($A20,_4[],Q$1,FALSE),0)+IFERROR(VLOOKUP($A20,_5[],Q$1,FALSE),0) -> 0 | R20: =IFERROR(VLOOKUP($A20,_2[],R$1,FALSE),0)+IFERROR(VLOOKUP($A20,_3[],R$1,FALSE),0)+IFERROR(VLOOKUP($A20,_4[],R$1,FALSE),0)+IFERROR(VLOOKUP($A20,_5[],R$1,FALSE),0) -> 0
C21: =IFERROR(VLOOKUP($A21,_2[],C$1,FALSE),0)+IFERROR(VLOOKUP($A21,_3[],C$1,FALSE),0)+IFERROR(VLOOKUP($A21,_4[],C$1,FALSE),0)+IFERROR(VLOOKUP($A21,_5[],C$1,FALSE),0) -> 0 | D21: =IFERROR(VLOOKUP($A21,_2[],D$1,FALSE),0)+IFERROR(VLOOKUP($A21,_3[],D$1,FALSE),0)+IFERROR(VLOOKUP($A21,_4[],D$1,FALSE),0)+IFERROR(VLOOKUP($A21,_5[],D$1,FALSE),0) -> 0 | E21: =IFERROR(VLOOKUP($A21,_2[],E$1,FALSE),0)+IFERROR(VLOOKUP($A21,_3[],E$1,FALSE),0)+IFERROR(VLOOKUP($A21,_4[],E$1,FALSE),0)+IFERROR(VLOOKUP($A21,_5[],E$1,FALSE),0) -> 0 | F21: =IFERROR(VLOOKUP($A21,_2[],F$1,FALSE),0)+IFERROR(VLOOKUP($A21,_3[],F$1,FALSE),0)+IFERROR(VLOOKUP($A21,_4[],F$1,FALSE),0)+IFERROR(VLOOKUP($A21,_5[],F$1,FALSE),0) -> 0 | G21: =IFERROR(VLOOKUP($A21,_2[],G$1,FALSE),0)+IFERROR(VLOOKUP($A21,_3[],G$1,FALSE),0)+IFERROR(VLOOKUP($A21,_4[],G$1,FALSE),0)+IFERROR(VLOOKUP($A21,_5[],G$1,FALSE),0) -> 0 | H21: =IFERROR(VLOOKUP($A21,_2[],H$1,FALSE),0)+IFERROR(VLOOKUP($A21,_3[],H$1,FALSE),0)+IFERROR(VLOOKUP($A21,_4[],H$1,FALSE),0)+IFERROR(VLOOKUP($A21,_5[],H$1,FALSE),0) -> 0 | I21: =IFERROR(VLOOKUP($A21,_2[],I$1,FALSE),0)+IFERROR(VLOOKUP($A21,_3[],I$1,FALSE),0)+IFERROR(VLOOKUP($A21,_4[],I$1,FALSE),0)+IFERROR(VLOOKUP($A21,_5[],I$1,FALSE),0) -> 0 | J21: =IFERROR(VLOOKUP($A21,_2[],J$1,FALSE),0)+IFERROR(VLOOKUP($A21,_3[],J$1,FALSE),0)+IFERROR(VLOOKUP($A21,_4[],J$1,FALSE),0)+IFERROR(VLOOKUP($A21,_5[],J$1,FALSE),0) -> 0 | K21: =IFERROR(VLOOKUP($A21,_2[],K$1,FALSE),0)+IFERROR(VLOOKUP($A21,_3[],K$1,FALSE),0)+IFERROR(VLOOKUP($A21,_4[],K$1,FALSE),0)+IFERROR(VLOOKUP($A21,_5[],K$1,FALSE),0) -> 0 | L21: =IF(Cumul_emp[[#This Row],[Colonne9]]>0,Cumul_emp[[#This Row],[Colonne9]]/Cumul_emp[[#This Row],[Colonne11]],0) -> 0 | M21: =IFERROR(VLOOKUP($A21,_2[],M$1,FALSE),0)+IFERROR(VLOOKUP($A21,_3[],M$1,FALSE),0)+IFERROR(VLOOKUP($A21,_4[],M$1,FALSE),0)+IFERROR(VLOOKUP($A21,_5[],M$1,FALSE),0) -> 0 | N21: =IFERROR(VLOOKUP($A21,_2[],N$1,FALSE),0)+IFERROR(VLOOKUP($A21,_3[],N$1,FALSE),0)+IFERROR(VLOOKUP($A21,_4[],N$1,FALSE),0)+IFERROR(VLOOKUP($A21,_5[],N$1,FALSE),0) -> 0 | O21: =IFERROR(VLOOKUP($A21,_2[],O$1,FALSE),0)+IFERROR(VLOOKUP($A21,_3[],O$1,FALSE),0)+IFERROR(VLOOKUP($A21,_4[],O$1,FALSE),0)+IFERROR(VLOOKUP($A21,_5[],O$1,FALSE),0) -> 0 | P21: =IFERROR(VLOOKUP($A21,_2[],P$1,FALSE),0)+IFERROR(VLOOKUP($A21,_3[],P$1,FALSE),0)+IFERROR(VLOOKUP($A21,_4[],P$1,FALSE),0)+IFERROR(VLOOKUP($A21,_5[],P$1,FALSE),0) -> 0 | Q21: =IFERROR(VLOOKUP($A21,_2[],Q$1,FALSE),0)+IFERROR(VLOOKUP($A21,_3[],Q$1,FALSE),0)+IFERROR(VLOOKUP($A21,_4[],Q$1,FALSE),0)+IFERROR(VLOOKUP($A21,_5[],Q$1,FALSE),0) -> 0 | R21: =IFERROR(VLOOKUP($A21,_2[],R$1,FALSE),0)+IFERROR(VLOOKUP($A21,_3[],R$1,FALSE),0)+IFERROR(VLOOKUP($A21,_4[],R$1,FALSE),0)+IFERROR(VLOOKUP($A21,_5[],R$1,FALSE),0) -> 0
A22: Total | C22: =SUBTOTAL(109,Cumul_emp[Colonne3]) -> 12656.95 | D22: =SUBTOTAL(109,Cumul_emp[Colonne4]) -> 350 | E22: =SUBTOTAL(109,Cumul_emp[Colonne5]) -> 0 | F22: =SUBTOTAL(109,Cumul_emp[Colonne6]) -> 125 | G22: =SUBTOTAL(109,Cumul_emp[Colonne7]) -> 0 | H22: =SUBTOTAL(109,Cumul_emp[Colonne8]) -> 12431.95 | I22: =SUBTOTAL(109,Cumul_emp[Colonne9]) -> 9451.95 | J22: =SUBTOTAL(109,Cumul_emp[Colonne10]) -> 2980 | K22: =SUBTOTAL(109,Cumul_emp[Colonne11]) -> 352 | L22: =SUBTOTAL(109,Cumul_emp[Colonne12]) -> 151.3801636 | M22: =SUBTOTAL(109,Cumul_emp[Colonne13]) -> 15 | N22: =SUBTOTAL(109,Cumul_emp[Colonne14]) -> 67 | O22: =SUBTOTAL(109,Cumul_emp[Colonne15]) -> 90 | P22: =SUBTOTAL(109,Cumul_emp[Colonne16]) -> 123 | Q22: =SUBTOTAL(109,Cumul_emp[Colonne163]) -> 27 | R22: =SUBTOTAL(109,Cumul_emp[Colonne162]) -> 30

Sheet Modele
B1: Modele | C1: =Modele!#REF! ->  | D1: =Modele!#REF! ->  | O1: =Modele!#REF! ->  | P1: =Modele!#REF! ->  | Q1: =Modele!#REF! ->  | R1: =Modele!#REF! ->  | S1: =Modele!#REF! -> 
A2: Calcul de la période | C2: =RIGHT(CELL("nomfichier",A1),LEN(CELL("nomfichier",A1))-FIND("]",CELL("nomfichier",A1))) -> Modele
N5: Poste
A6: N° employé | B6: Nom employé | C6: Revenu | D6: Dépense | F6: Facture surplus | H6: Revenu généré | I6: Excédent | J6: Ne pas compter | K6: HRS | L6: taux | N6: 25 | O6: 456 | P6: 785 | Q6: 21 | R6: 54 | S6: Validation | T6: Classification
D7: (-) | E7: (+) | F7: (+) | G7: Inclus | I7: 0
A8: Colonne1 | B8: Colonne2 | C8: Colonne3 | D8: Colonne4 | E8: Colonne5 | F8: Colonne6 | G8: Colonne7 | H8: Colonne8 | I8: Colonne9 | J8: Colonne10 | K8: Colonne11 | L8: Colonne12 | M8: Colonne13 | N8: Colonne14 | O8: Colonne15 | P8: Colonne16 | Q8: Colonne163 | R8: Colonne162 | S8: Colonne17 | T8: Colonne18
A9: =_xlfn.LET(_xlpm.tbl,_xlfn.VSTACK(Début:Fin!A9:B1000),_xlpm.tblf,_xlfn._xlws.FILTER(_xlpm.tbl,_xlfn.TAKE(_xlpm.tbl,,-1)<>0),_xlpm.tblf2,_xlfn._xlws.FILTER(_xlpm.tblf,_xlfn.TAKE(_xlpm.tblf,,1)<>0),_xlfn._xlws.SORT(_xlfn.UNIQUE(_xlpm.tblf2),1)) -> 3 | B9: Employé y | C9: =_xlfn.LET(_xlpm.tbl,_xlfn.VSTACK(Début:Fin!A9:C1000),_xlpm.tblf,_xlfn._xlws.FILTER(_xlpm.tbl,_xlfn.CHOOSECOLS(_xlpm.tbl,2)<>0),_xlpm.rech,_xlfn._xlws.FILTER(_xlpm.tblf,_xlfn.TAKE(_xlpm.tblf,,1)<>0),_xlfn.BYROW(A9:A1000,_xlfn.LAMBDA(_xlpm.x,SUMPRODUCT((_xlfn.TAKE(_xlpm.rech,,1)=_xlpm.x)*_xlfn.TAKE(_xlpm.rech,,-1))))) -> 3895.81 | H9: =C9-D9+E9+F9 -> 3895.81 | I9: =IF(T9="EX",0,IF($H9>$I$7,($H9-$I$7),0)) -> 3895.81 | J9: =IF(Modele!$T9="EX",Modele!$H9,SUM(H9-I9)) -> 0 | L9: =IF(K9="","",J9/K9) ->  | S9: =IF(T9="EX","OK validé",(IF(A9="","",IF(SUM(M9+N9+O9+P9+Q9+R9)<>J9,"À vérifier","OK validé")))) -> OK validé | T9: =IF(A9="","",VLOOKUP(A9,Nom_employé,3)) -> B
A10: 4 | B10: Employé x | C10: 2365 | H10: 2365 | I10: 2365 | J10: =IF(Modele!$T10="EX",Modele!$H10,SUM(H10-I10)) -> 0 | L10: =IF(K10="","",J10/K10) ->  | S10: OK validé | T10: C
A11: 5 | B11: Employer z | C11: 1000 | H11: 1000 | I11: 1000 | J11: =IF(Modele!$T11="EX",Modele!$H11,SUM(H11-I11)) -> 0 | S11: OK validé | T11: TA
A12: 6 | B12: Employer A | C12: 1826.14 | H12: 1826.14 | I12: 1826.14 | J12: =IF(Modele!$T12="EX",Modele!$H12,SUM(H12-I12)) -> 0 | S12: OK validé | T12: TA
A13: 7 | B13: Employer B | C13: 650 | H13: 650 | I13: 650 | J13: =IF(Modele!$T13="EX",Modele!$H13,SUM(H13-I13)) -> 0 | S13: OK validé | T13: B
A14: 8 | B14: Employer C | C14: 2920 | H14: =C14-D14+E14+F14 -> 2920 | I14: 0 | J14: =IF(Modele!$T14="EX",Modele!$H14,SUM(H14-I14)) -> 2920 | L14: =IF(K14="","",J14/K14) ->  | S14: OK validé | T14: EX
C15: 0 | H15: 0 | I15: 0 | J15: =IF(Modele!$T15="EX",Modele!$H15,SUM(H15-I15)) -> 0
C16: 0 | H16: 0 | I16: 0 | J16: =IF(Modele!$T16="EX",Modele!$H16,SUM(H16-I16)) -> 0
C17: 0 | H17: 0 | I17: =IF(T17="EX",0,IF($H17>$I$7,($H17-$I$7),0)) -> 0 | J17: =IF(Modele!$T17="EX",Modele!$H17,SUM(H17-I17)) -> 0 | S17: =IF(T17="EX","OK validé",(IF(A17="","",IF(SUM(M17+N17+O17+P17+Q17+R17)<>J17,"À vérifier","OK validé")))) ->  | T17: =IF(A17="","",VLOOKUP(A17,Nom_employé,3)) -> 
C18: 0 | H18: 0 | I18: 0 | J18: =IF(Modele!$T18="EX",Modele!$H18,SUM(H18-I18)) -> 0
C19: 0 | H19: 0 | I19: 0 | J19: =IF(Modele!$T19="EX",Modele!$H19,SUM(H19-I19)) -> 0
C20: 0 | H20: 0 | I20: 0 | J20: =IF(Modele!$T20="EX",Modele!$H20,SUM(H20-I20)) -> 0
C21: 0 | H21: 0 | I21: 0 | J21: =IF(Modele!$T21="EX",Modele!$H21,SUM(H21-I21)) -> 0
C22: 0 | H22: 0 | I22: 0 | J22: =IF(Modele!$T22="EX",Modele!$H22,SUM(H22-I22)) -> 0
C23: 0 | H23: 0 | I23: 0 | J23: =IF(Modele!$T23="EX",Modele!$H23,SUM(H23-I23)) -> 0
C24: 0 | H24: 0 | I24: 0 | J24: =IF(Modele!$T24="EX",Modele!$H24,SUM(H24-I24)) -> 0
C25: 0 | H25: 0 | I25: 0 | J25: =IF(Modele!$T25="EX",Modele!$H25,SUM(H25-I25)) -> 0
C26: 0 | H26: 0 | I26: 0 | J26: =IF(Modele!$T26="EX",Modele!$H26,SUM(H26-I26)) -> 0
C27: 0 | H27: 0 | I27: 0 | J27: =IF(Modele!$T27="EX",Modele!$H27,SUM(H27-I27)) -> 0
C28: 0 | H28: 0 | I28: 0 | J28: =IF(Modele!$T28="EX",Modele!$H28,SUM(H28-I28)) -> 0
C29: 0 | H29: 0 | I29: 0 | J29: =IF(Modele!$T29="EX",Modele!$H29,SUM(H29-I29)) -> 0
C30: 0 | H30: 0 | I30: 0 | J30: =IF(Modele!$T30="EX",Modele!$H30,SUM(H30-I30)) -> 0
C31: 0 | H31: 0 | I31: 0 | J31: =IF(Modele!$T31="EX",Modele!$H31,SUM(H31-I31)) -> 0
C32: 0 | H32: 0 | I32: 0 | J32: =IF(Modele!$T32="EX",Modele!$H32,SUM(H32-I32)) -> 0
C33: 0 | H33: 0 | I33: 0 | J33: =IF(Modele!$T33="EX",Modele!$H33,SUM(H33-I33)) -> 0
C34: 0 | H34: 0 | I34: 0 | J34: =IF(Modele!$T34="EX",Modele!$H34,SUM(H34-I34)) -> 0
C35: 0 | H35: 0 | I35: 0 | J35: =IF(Modele!$T35="EX",Modele!$H35,SUM(H35-I35)) -> 0
C36: 0 | H36: 0 | I36: 0 | J36: =IF(Modele!$T36="EX",Modele!$H36,SUM(H36-I36)) -> 0
C37: 0 | H37: 0 | I37: 0 | J37: =IF(Modele!$T37="EX",Modele!$H37,SUM(H37-I37)) -> 0
C38: 0 | H38: 0 | I38: 0 | J38: =IF(Modele!$T38="EX",Modele!$H38,SUM(H38-I38)) -> 0
C39: 0 | H39: 0 | I39: 0 | J39: =IF(Modele!$T39="EX",Modele!$H39,SUM(H39-I39)) -> 0
C40: 0 | H40: 0 | I40: 0 | J40: =IF(Modele!$T40="EX",Modele!$H40,SUM(H40-I40)) -> 0
C41: 0 | H41: 0 | I41: 0 | J41: =IF(Modele!$T41="EX",Modele!$H41,SUM(H41-I41)) -> 0
C42: 0 | H42: 0 | I42: 0 | J42: =IF(Modele!$T42="EX",Modele!$H42,SUM(H42-I42)) -> 0
C43: 0 | H43: 0 | I43: 0 | J43: =IF(Modele!$T43="EX",Modele!$H43,SUM(H43-I43)) -> 0
C44: 0 | H44: 0 | I44: 0 | J44: =IF(Modele!$T44="EX",Modele!$H44,SUM(H44-I44)) -> 0
C45: 0 | H45: 0 | I45: 0 | J45: =IF(Modele!$T45="EX",Modele!$H45,SUM(H45-I45)) -> 0
C46: 0 | H46: 0 | I46: 0 | J46: =IF(Modele!$T46="EX",Modele!$H46,SUM(H46-I46)) -> 0
C47: 0 | H47: 0 | I47: 0 | J47: =IF(Modele!$T47="EX",Modele!$H47,SUM(H47-I47)) -> 0
C48: 0 | H48: 0 | I48: 0 | J48: =IF(Modele!$T48="EX",Modele!$H48,SUM(H48-I48)) -> 0
C49: 0 | H49: 0 | I49: 0 | J49: =IF(Modele!$T49="EX",Modele!$H49,SUM(H49-I49)) -> 0
C50: 0 | H50: 0 | I50: 0 | J50: =IF(Modele!$T50="EX",Modele!$H50,SUM(H50-I50)) -> 0
C51: 0 | H51: 0 | I51: 0 | J51: =IF(Modele!$T51="EX",Modele!$H51,SUM(H51-I51)) -> 0
C52: 0 | H52: 0 | I52: 0 | J52: =IF(Modele!$T52="EX",Modele!$H52,SUM(H52-I52)) -> 0
C53: 0 | H53: 0 | I53: 0 | J53: =IF(Modele!$T53="EX",Modele!$H53,SUM(H53-I53)) -> 0
C54: 0 | H54: 0 | I54: 0 | J54: =IF(Modele!$T54="EX",Modele!$H54,SUM(H54-I54)) -> 0
C55: 0 | H55: 0 | I55: 0 | J55: =IF(Modele!$T55="EX",Modele!$H55,SUM(H55-I55)) -> 0
C56: 0 | H56: 0 | I56: 0 | J56: =IF(Modele!$T56="EX",Modele!$H56,SUM(H56-I56)) -> 0
C57: 0
C58: 0
C59: 0
C60: 0
C61: 0
C62: 0
C63: 0
C64: 0
C65: 0
C66: 0
C67: 0
C68: 0
C69: 0
C70: 0
C71: 0
C72: 0
C73: 0
C74: 0
C75: 0
C76: 0
C77: 0
C78: 0
C79: 0
C80: 0
C81: 0
C82: 0
C83: 0
C84: 0
C85: 0
C86: 0
C87: 0
C88: 0
C89: 0
C90: 0
C91: 0
C92: 0
C93: 0
C94: 0
C95: 0
C96: 0
C97: 0
C98: 0
C99: 0
C100: 0
C101: 0
C102: 0
C103: 0
C104: 0
C105: 0
C106: 0
C107: 0
C108: 0
C109: 0
C110: 0
C111: 0
C112: 0
C113: 0
C114: 0
C115: 0
C116: 0
C117: 0
C118: 0
C119: 0
C120: 0
C121: 0
C122: 0
C123: 0
C124: 0
C125: 0
C126: 0
C127: 0
C128: 0
C129: 0
C130: 0
C131: 0
C132: 0
C133: 0
C134: 0
C135: 0
C136: 0
C137: 0
C138: 0
C139: 0
C140: 0
C141: 0
C142: 0
C143: 0
C144: 0
C145: 0
C146: 0
C147: 0
C148: 0
C149: 0
C150: 0
C151: 0
C152: 0
C153: 0
C154: 0
C155: 0
C156: 0
C157: 0
C158: 0
C159: 0
C160: 0
C161: 0
C162: 0
C163: 0
C164: 0
C165: 0
C166: 0
C167: 0
C168: 0
C169: 0
C170: 0
C171: 0
C172: 0
C173: 0
C174: 0
C175: 0
C176: 0
C177: 0
C178: 0
C179: 0
C180: 0
C181: 0
C182: 0
C183: 0
C184: 0
C185: 0
C186: 0
C187: 0
C188: 0
C189: 0
C190: 0
C191: 0
C192: 0
C193: 0
C194: 0
C195: 0
C196: 0
C197: 0
C198: 0
C199: 0
C200: 0
C201: 0
C202: 0
... 798 more rows

Sheet Début

Sheet P2
A2: Calcul de la période | C2: =RIGHT(CELL("nomfichier",A1),LEN(CELL("nomfichier",A1))-FIND("]",CELL("nomfichier",A1))) -> P2
A4: TAUX VERSEMENT PERIODIQUE
F5: EMPLOYEUR | N5: Poste
A6: N° employé | B6: Nom employé | C6: Salaire brut | D6: SÉC. CCQ | E6: AV. IMPOS. | F6: RVER-REER | G6: TRANSPORT | H6: Salaire | I6: Excédent | J6: Salaire moins excédent | K6: HRS | L6: taux | M6: TRAV. AUX. | N6: *80110 | O6: *80130 | P6: *80100 | Q6: *80020 | R6: *90010 | S6: Validation | T6: Classification
D7: (-) | E7: (+) | F7: (+) | G7: Inclus | I7: 0
A8: Colonne1 | B8: Colonne2 | C8: Colonne3 | D8: Colonne4 | E8: Colonne5 | F8: Colonne6 | G8: Colonne7 | H8: Colonne8 | I8: Colonne9 | J8: Colonne10 | K8: Colonne11 | L8: Colonne12 | M8: Colonne13 | N8: Colonne14 | O8: Colonne15 | P8: Colonne16 | Q8: Colonne163 | R8: Colonne162 | S8: Colonne17 | T8: Colonne18
A9: 3 | B9: =IF(A9="","",VLOOKUP(A9,Nom_employé,2)) -> Employé y | C9: 1250 | H9: =C9-D9+E9+F9 -> 1250 | I9: =IF(T9="EX",0,IF($H9>$I$7,($H9-$I$7),0)) -> 1250 | J9: =IF(_2[[#This Row],[Colonne18]]="EX",_2[[#This Row],[Colonne8]],SUM(H9-I9)) -> 0 | K9: 20 | L9: =IF(K9="","",J9/K9) -> 0 | N9: 2 | O9: 10 | P9: 8 | S9: =IF(T9="EX","OK validé",(IF(A9="","",IF(SUM(M9+N9+O9+P9+Q9+R9)<>J9,"À vérifier","OK validé")))) -> À vérifier | T9: =IF(A9="","",VLOOKUP(A9,Nom_employé,3)) -> B
A10: 4 | B10: Employé x | C10: 365 | H10: 365 | I10: 365 | J10: =IF(_2[[#This Row],[Colonne18]]="EX",_2[[#This Row],[Colonne8]],SUM(H10-I10)) -> 0 | K10: 10 | L10: =IF(K10="","",J10/K10) -> 0 | O10: 5 | Q10: 5 | S10: À vérifier | T10: C
A11: 8 | B11: Employer C | C11: 600 | H11: 600 | I11: 0 | J11: =IF(_2[[#This Row],[Colonne18]]="EX",_2[[#This Row],[Colonne8]],SUM(H11-I11)) -> 600 | K11: 30 | L11: 20 | M11: 10 | N11: 15 | R11: 5 | S11: OK validé | T11: EX
H12: 0 | I12: 0 | J12: =IF(_2[[#This Row],[Colonne18]]="EX",_2[[#This Row],[Colonne8]],SUM(H12-I12)) -> 0
H13: 0 | I13: 0 | J13: =IF(_2[[#This Row],[Colonne18]]="EX",_2[[#This Row],[Colonne8]],SUM(H13-I13)) -> 0
H14: =C14-D14+E14+F14 -> 0 | I14: 0 | J14: =IF(_2[[#This Row],[Colonne18]]="EX",_2[[#This Row],[Colonne8]],SUM(H14-I14)) -> 0 | L14: =IF(K14="","",J14/K14) -> 
H15: 0 | I15: 0 | J15: =IF(_2[[#This Row],[Colonne18]]="EX",_2[[#This Row],[Colonne8]],SUM(H15-I15)) -> 0
H16: 0 | I16: 0 | J16: =IF(_2[[#This Row],[Colonne18]]="EX",_2[[#This Row],[Colonne8]],SUM(H16-I16)) -> 0
B17: =IF(A17="","",VLOOKUP(A17,Nom_employé,2)) ->  | H17: 0 | I17: =IF(T17="EX",0,IF($H17>$I$7,($H17-$I$7),0)) -> 0 | J17: =IF(_2[[#This Row],[Colonne18]]="EX",_2[[#This Row],[Colonne8]],SUM(H17-I17)) -> 0 | S17: =IF(T17="EX","OK validé",(IF(A17="","",IF(SUM(M17+N17+O17+P17+Q17+R17)<>J17,"À vérifier","OK validé")))) ->  | T17: =IF(A17="","",VLOOKUP(A17,Nom_employé,3)) -> 
H18: 0 | I18: 0 | J18: =IF(_2[[#This Row],[Colonne18]]="EX",_2[[#This Row],[Colonne8]],SUM(H18-I18)) -> 0
H19: 0 | I19: 0 | J19: =IF(_2[[#This Row],[Colonne18]]="EX",_2[[#This Row],[Colonne8]],SUM(H19-I19)) -> 0
H20: 0 | I20: 0 | J20: =IF(_2[[#This Row],[Colonne18]]="EX",_2[[#This Row],[Colonne8]],SUM(H20-I20)) -> 0
H21: 0 | I21: 0 | J21: =IF(_2[[#This Row],[Colonne18]]="EX",_2[[#This Row],[Colonne8]],SUM(H21-I21)) -> 0
H22: 0 | I22: 0 | J22: =IF(_2[[#This Row],[Colonne18]]="EX",_2[[#This Row],[Colonne8]],SUM(H22-I22)) -> 0
H23: 0 | I23: 0 | J23: =IF(_2[[#This Row],[Colonne18]]="EX",_2[[#This Row],[Colonne8]],SUM(H23-I23)) -> 0
H24: 0 | I24: 0 | J24: =IF(_2[[#This Row],[Colonne18]]="EX",_2[[#This Row],[Colonne8]],SUM(H24-I24)) -> 0
H25: 0 | I25: 0 | J25: =IF(_2[[#This Row],[Colonne18]]="EX",_2[[#This Row],[Colonne8]],SUM(H25-I25)) -> 0
H26: 0 | I26: 0 | J26: =IF(_2[[#This Row],[Colonne18]]="EX",_2[[#This Row],[Colonne8]],SUM(H26-I26)) -> 0
H27: 0 | I27: 0 | J27: =IF(_2[[#This Row],[Colonne18]]="EX",_2[[#This Row],[Colonne8]],SUM(H27-I27)) -> 0
H28: 0 | I28: 0 | J28: =IF(_2[[#This Row],[Colonne18]]="EX",_2[[#This Row],[Colonne8]],SUM(H28-I28)) -> 0
H29: 0 | I29: 0 | J29: =IF(_2[[#This Row],[Colonne18]]="EX",_2[[#This Row],[Colonne8]],SUM(H29-I29)) -> 0
H30: 0 | I30: 0 | J30: =IF(_2[[#This Row],[Colonne18]]="EX",_2[[#This Row],[Colonne8]],SUM(H30-I30)) -> 0
H31: 0 | I31: 0 | J31: =IF(_2[[#This Row],[Colonne18]]="EX",_2[[#This Row],[Colonne8]],SUM(H31-I31)) -> 0
H32: 0 | I32: 0 | J32: =IF(_2[[#This Row],[Colonne18]]="EX",_2[[#This Row],[Colonne8]],SUM(H32-I32)) -> 0
H33: 0 | I33: 0 | J33: =IF(_2[[#This Row],[Colonne18]]="EX",_2[[#This Row],[Colonne8]],SUM(H33-I33)) -> 0
H34: 0 | I34: 0 | J34: =IF(_2[[#This Row],[Colonne18]]="EX",_2[[#This Row],[Colonne8]],SUM(H34-I34)) -> 0
H35: 0 | I35: 0 | J35: =IF(_2[[#This Row],[Colonne18]]="EX",_2[[#This Row],[Colonne8]],SUM(H35-I35)) -> 0
H36: 0 | I36: 0 | J36: =IF(_2[[#This Row],[Colonne18]]="EX",_2[[#This Row],[Colonne8]],SUM(H36-I36)) -> 0
H37: 0 | I37: 0 | J37: =IF(_2[[#This Row],[Colonne18]]="EX",_2[[#This Row],[Colonne8]],SUM(H37-I37)) -> 0
H38: 0 | I38: 0 | J38: =IF(_2[[#This Row],[Colonne18]]="EX",_2[[#This Row],[Colonne8]],SUM(H38-I38)) -> 0
H39: 0 | I39: 0 | J39: =IF(_2[[#This Row],[Colonne18]]="EX",_2[[#This Row],[Colonne8]],SUM(H39-I39)) -> 0
H40: 0 | I40: 0 | J40: =IF(_2[[#This Row],[Colonne18]]="EX",_2[[#This Row],[Colonne8]],SUM(H40-I40)) -> 0
H41: 0 | I41: 0 | J41: =IF(_2[[#This Row],[Colonne18]]="EX",_2[[#This Row],[Colonne8]],SUM(H41-I41)) -> 0
A42: Total | C42: =SUBTOTAL(109,_2[Colonne3]) -> 2215 | D42: =SUBTOTAL(109,_2[Colonne4]) -> 0 | E42: =SUBTOTAL(109,_2[Colonne5]) -> 0 | F42: =SUBTOTAL(109,_2[Colonne6]) -> 0 | G42: =SUBTOTAL(109,_2[Colonne7]) -> 0 | H42: =SUBTOTAL(109,_2[Colonne8]) -> 2215 | I42: =SUBTOTAL(109,_2[Colonne9]) -> 1615 | J42: =SUBTOTAL(109,_2[Colonne10]) -> 600 | M42: =SUBTOTAL(109,_2[Colonne13]) -> 10 | N42: =SUBTOTAL(109,_2[Colonne14]) -> 17 | O42: =SUBTOTAL(109,_2[Colonne15]) -> 15 | P42: =SUBTOTAL(109,_2[Colonne16]) -> 8 | Q42: =SUBTOTAL(109,_2[Colonne163]) -> 5 | R42: =SUBTOTAL(109,_2[Colonne162]) -> 5

Sheet P3
B1: P3 | S1: =_3[[#Totals],[Colonne17]] -> 0
A2: Calcul de la période | C2: =RIGHT(CELL("nomfichier",A1),LEN(CELL("nomfichier",A1))-FIND("]",CELL("nomfichier",A1))) -> P3
N5: Poste
A6: N° employé | B6: Nom employé | C6: Revenu | D6: Dépense | F6: Facture surplus | H6: Revenu généré | I6: Excédent | J6: Ne pas compter | K6: HRS | L6: taux | N6: 25 | O6: 456 | P6: 785 | Q6: 21 | R6: 54 | S6: Validation | T6: Classification
D7: (-) | E7: (+) | F7: (+) | G7: Inclus | I7: 0
A8: Colonne1 | B8: Colonne2 | C8: Colonne3 | D8: Colonne4 | E8: Colonne5 | F8: Colonne6 | G8: Colonne7 | H8: Colonne8 | I8: Colonne9 | J8: Colonne10 | K8: Colonne11 | L8: Colonne12 | M8: Colonne13 | N8: Colonne14 | O8: Colonne15 | P8: Colonne16 | Q8: Colonne163 | R8: Colonne162 | S8: Colonne17 | T8: Colonne18
A9: 7 | B9: =IF(A9="","",VLOOKUP(A9,Nom_employé,2,FALSE)) -> Employer B | C9: 650 | H9: =C9-D9+E9+F9 -> 650 | I9: =IF(T9="EX",0,IF($H9>$I$7,($H9-$I$7),0)) -> 650 | J9: =IF(_3[[#This Row],[Colonne18]]="EX",_3[[#This Row],[Colonne8]],SUM(H9-I9)) -> 0 | K9: 20 | L9: =_3[[#This Row],[Colonne10]]/_3[[#This Row],[Colonne11]] -> 0 | N9: 5 | P9: 5 | Q9: 10 | S9: =IF(T9="EX","OK validé",(IF(A9="","",IF(SUM(M9+N9+O9+P9+Q9+R9)<>J9,"À vérifier","OK validé")))) -> À vérifier | T9: =IF(A9="","",VLOOKUP(A9,Nom_employé,3)) -> B
A10: 4 | B10: Employé x | C10: 1500 | H10: 1500 | I10: 1500 | J10: =IF(_3[[#This Row],[Colonne18]]="EX",_3[[#This Row],[Colonne8]],SUM(H10-I10)) -> 0 | K10: 75 | L10: =_3[[#This Row],[Colonne10]]/_3[[#This Row],[Colonne11]] -> 0 | N10: 20 | O10: 20 | P10: 30 | R10: 5 | S10: À vérifier | T10: C
A11: 6 | B11: Employer A | C11: 250 | H11: 250 | I11: 250 | J11: =IF(_3[[#This Row],[Colonne18]]="EX",_3[[#This Row],[Colonne8]],SUM(H11-I11)) -> 0 | K11: 25 | L11: =_3[[#This Row],[Colonne10]]/_3[[#This Row],[Colonne11]] -> 0 | M11: 5 | O11: 10 | Q11: 10 | S11: À vérifier | T11: TA
H12: 0 | I12: 0 | J12: =IF(_3[[#This Row],[Colonne18]]="EX",_3[[#This Row],[Colonne8]],SUM(H12-I12)) -> 0
H13: 0 | I13: 0 | J13: =IF(_3[[#This Row],[Colonne18]]="EX",_3[[#This Row],[Colonne8]],SUM(H13-I13)) -> 0
B14: =IF(A14="","",VLOOKUP(A14,Nom_employé,2,FALSE)) ->  | H14: =C14-D14+E14+F14 -> 0 | I14: =IF(T14="EX",0,IF($H14>$I$7,($H14-$I$7),0)) -> 0 | J14: =IF(_3[[#This Row],[Colonne18]]="EX",_3[[#This Row],[Colonne8]],SUM(H14-I14)) -> 0 | S14: =IF(T14="EX","OK validé",(IF(A14="","",IF(SUM(M14+N14+O14+P14+Q14+R14)<>J14,"À vérifier","OK validé")))) ->  | T14: =IF(A14="","",VLOOKUP(A14,Nom_employé,3)) -> 
H15: 0 | I15: 0 | J15: =IF(_3[[#This Row],[Colonne18]]="EX",_3[[#This Row],[Colonne8]],SUM(H15-I15)) -> 0 | L15: =IF(K15="","",J15/K15) -> 
A16: Total | C16: =SUBTOTAL(109,_3[Colonne3]) -> 2400 | D16: =SUBTOTAL(109,_3[Colonne4]) -> 0 | E16: =SUBTOTAL(109,_3[Colonne5]) -> 0 | F16: =SUBTOTAL(109,_3[Colonne6]) -> 0 | G16: =SUBTOTAL(109,_3[Colonne7]) -> 0 | H16: =SUBTOTAL(109,_3[Colonne8]) -> 2400 | I16: =SUBTOTAL(109,_3[Colonne9]) -> 2400 | J16: =SUBTOTAL(109,_3[Colonne10]) -> 0 | M16: =SUBTOTAL(109,_3[Colonne13]) -> 5 | N16: =SUBTOTAL(109,_3[Colonne14]) -> 25 | O16: =SUBTOTAL(109,_3[Colonne15]) -> 30 | P16: =SUBTOTAL(109,_3[Colonne16]) -> 35 | Q16: =SUBTOTAL(109,_3[Colonne163]) -> 20 | R16: =SUBTOTAL(109,_3[Colonne162]) -> 5
B99: Modele | C99: =_3[[#Totals],[Colonne3]] -> 2400 | D99: =_3[[#Totals],[Colonne4]] -> 0 | E99: =_3[[#Totals],[Colonne5]] -> 0 | F99: =_3[[#Totals],[Colonne6]] -> 0 | G99: =_3[[#Totals],[Colonne7]] -> 0 | H99: =_3[[#Totals],[Colonne8]] -> 2400 | I99: =_3[[#Totals],[Colonne9]] -> 2400 | J99: =_3[[#Totals],[Colonne10]] -> 0 | K99: =_3[[#Totals],[Colonne11]] -> 0 | L99: =_3[[#Totals],[Colonne12]] -> 0 | M99: =_3[[#Totals],[Colonne13]] -> 5 | N99: =_3[[#Totals],[Colonne14]] -> 25 | O99: =_3[[#Totals],[Colonne15]] -> 30 | P99: =_3[[#Totals],[Colonne16]] -> 35 | Q99: =_3[[#Totals],[Colonne163]] -> 20 | R99: =_3[[#Totals],[Colonne162]] -> 5 | S99: =_3[[#Totals],[Colonne17]] -> 0

Sheet P4
B1: P4
A2: Calcul de la période | C2: =RIGHT(CELL("nomfichier",A1),LEN(CELL("nomfichier",A1))-FIND("]",CELL("nomfichier",A1))) -> P4
N5: Poste
A6: N° employé | B6: Nom employé | C6: Revenu | D6: Dépense | F6: Facture surplus | H6: Revenu généré | I6: Excédent | J6: Ne pas compter | K6: HRS | L6: taux | N6: 25 | O6: 456 | P6: 785 | Q6: 21 | R6: 54 | S6: Validation | T6: Classification
D7: (-) | E7: (+) | F7: (+) | G7: Inclus | I7: 0
A8: Colonne1 | B8: Colonne2 | C8: Colonne3 | D8: Colonne4 | E8: Colonne5 | F8: Colonne6 | G8: Colonne7 | H8: Colonne8 | I8: Colonne9 | J8: Colonne10 | K8: Colonne11 | L8: Colonne12 | M8: Colonne13 | N8: Colonne14 | O8: Colonne15 | P8: Colonne16 | Q8: Colonne163 | R8: Colonne162 | S8: Colonne17 | T8: Colonne18
A9: 3 | B9: =IF(A9="","",VLOOKUP(A9,Nom_employé,2,FALSE)) -> Employé y | C9: 500 | H9: =C9-D9+E9+F9 -> 500 | I9: =IF(T9="EX",0,IF($H9>$I$7,($H9-$I$7),0)) -> 500 | J9: =IF(_4[[#This Row],[Colonne18]]="EX",_4[[#This Row],[Colonne8]],SUM(H9-I9)) -> 0 | K9: 50 | L9: =_4[[#This Row],[Colonne8]]/_4[[#This Row],[Colonne11]] -> 10 | P9: 50 | S9: =IF(T9="EX","OK validé",(IF(A9="","",IF(SUM(M9+N9+O9+P9+Q9+R9)<>J9,"À vérifier","OK validé")))) -> À vérifier | T9: =IF(A9="","",VLOOKUP(A9,Nom_employé,3)) -> B
A10: 4 | B10: Employé x | C10: 500 | H10: 500 | I10: 500 | J10: =IF(_4[[#This Row],[Colonne18]]="EX",_4[[#This Row],[Colonne8]],SUM(H10-I10)) -> 0 | K10: 25 | L10: =_4[[#This Row],[Colonne8]]/_4[[#This Row],[Colonne11]] -> 20 | N10: 15 | O10: 10 | S10: À vérifier | T10: C
A11: 5 | B11: Employer z | C11: 1000 | H11: 1000 | I11: 1000 | J11: =IF(_4[[#This Row],[Colonne18]]="EX",_4[[#This Row],[Colonne8]],SUM(H11-I11)) -> 0 | K11: 32 | L11: =_4[[#This Row],[Colonne8]]/_4[[#This Row],[Colonne11]] -> 31.25 | O11: 30 | Q11: 2 | S11: À vérifier | T11: TA
H12: 0 | I12: 0 | J12: =IF(_4[[#This Row],[Colonne18]]="EX",_4[[#This Row],[Colonne8]],SUM(H12-I12)) -> 0
B13: =IF(A13="","",VLOOKUP(A13,Nom_employé,2,FALSE)) ->  | H13: =C13-D13+E13+F13 -> 0 | I13: =IF(T13="EX",0,IF($H13>$I$7,($H13-$I$7),0)) -> 0 | J13: =IF(_4[[#This Row],[Colonne18]]="EX",_4[[#This Row],[Colonne8]],SUM(H13-I13)) -> 0 | S13: =IF(T13="EX","OK validé",(IF(A13="","",IF(SUM(M13+N13+O13+P13+Q13+R13)<>J13,"À vérifier","OK validé")))) ->  | T13: =IF(A13="","",VLOOKUP(A13,Nom_employé,3)) -> 
H14: 0 | I14: 0 | J14: =IF(_4[[#This Row],[Colonne18]]="EX",_4[[#This Row],[Colonne8]],SUM(H14-I14)) -> 0
H15: 0 | I15: 0 | J15: =IF(_4[[#This Row],[Colonne18]]="EX",_4[[#This Row],[Colonne8]],SUM(H15-I15)) -> 0
H16: 0 | I16: 0 | J16: =IF(_4[[#This Row],[Colonne18]]="EX",_4[[#This Row],[Colonne8]],SUM(H16-I16)) -> 0
H17: 0 | I17: 0 | J17: =IF(_4[[#This Row],[Colonne18]]="EX",_4[[#This Row],[Colonne8]],SUM(H17-I17)) -> 0
H18: 0 | I18: 0 | J18: =IF(_4[[#This Row],[Colonne18]]="EX",_4[[#This Row],[Colonne8]],SUM(H18-I18)) -> 0
H19: 0 | I19: 0 | J19: =IF(_4[[#This Row],[Colonne18]]="EX",_4[[#This Row],[Colonne8]],SUM(H19-I19)) -> 0
H20: 0 | I20: 0 | J20: =IF(_4[[#This Row],[Colonne18]]="EX",_4[[#This Row],[Colonne8]],SUM(H20-I20)) -> 0
H21: 0 | I21: 0 | J21: =IF(_4[[#This Row],[Colonne18]]="EX",_4[[#This Row],[Colonne8]],SUM(H21-I21)) -> 0
H22: 0 | I22: 0 | J22: =IF(_4[[#This Row],[Colonne18]]="EX",_4[[#This Row],[Colonne8]],SUM(H22-I22)) -> 0
H23: 0 | I23: 0 | J23: =IF(_4[[#This Row],[Colonne18]]="EX",_4[[#This Row],[Colonne8]],SUM(H23-I23)) -> 0
H24: 0 | I24: 0 | J24: =IF(_4[[#This Row],[Colonne18]]="EX",_4[[#This Row],[Colonne8]],SUM(H24-I24)) -> 0 | L24: =IF(K24="","",J24/K24) -> 
A25: Total | C25: =SUBTOTAL(109,_4[Colonne3]) -> 2000 | D25: =SUBTOTAL(109,_4[Colonne4]) -> 0 | E25: =SUBTOTAL(109,_4[Colonne5]) -> 0 | F25: =SUBTOTAL(109,_4[Colonne6]) -> 0 | G25: =SUBTOTAL(109,_4[Colonne7]) -> 0 | H25: =SUBTOTAL(109,_4[Colonne8]) -> 2000 | I25: =SUBTOTAL(109,_4[Colonne9]) -> 2000 | J25: =SUBTOTAL(109,_4[Colonne10]) -> 0 | M25: =SUBTOTAL(109,_4[Colonne13]) -> 0 | N25: =SUBTOTAL(109,_4[Colonne14]) -> 15 | O25: =SUBTOTAL(109,_4[Colonne15]) -> 40 | P25: =SUBTOTAL(109,_4[Colonne16]) -> 50 | Q25: =SUBTOTAL(109,_4[Colonne163]) -> 2 | R25: =SUBTOTAL(109,_4[Colonne162]) -> 0

Sheet P5
B1: P5
A2: Calcul de la période | C2: =RIGHT(CELL("nomfichier",A1),LEN(CELL("nomfichier",A1))-FIND("]",CELL("nomfichier",A1))) -> P5
N5: Poste
A6: N° employé | B6: Nom employé | C6: Revenu | D6: Dépense | F6: Facture surplus | H6: Revenu généré | I6: Excédent | J6: Ne pas compter | K6: HRS | L6: taux | N6: 25 | O6: 456 | P6: 785 | Q6: 21 | R6: 54 | S6: Validation | T6: Classification
D7: (-) | E7: (+) | F7: (+) | G7: Inclus | I7: 0
A8: Colonne1 | B8: Colonne2 | C8: Colonne3 | D8: Colonne4 | E8: Colonne5 | F8: Colonne6 | G8: Colonne7 | H8: Colonne8 | I8: Colonne9 | J8: Colonne10 | K8: Colonne11 | L8: Colonne12 | M8: Colonne13 | N8: Colonne14 | O8: Colonne15 | P8: Colonne16 | Q8: Colonne163 | R8: Colonne162 | S8: Colonne17 | T8: Colonne18
A9: 8 | B9: =IF(A9="","",VLOOKUP(A9,Nom_employé,2,FALSE)) -> Employer C | C9: 2320 | D9: 15 | F9: 75 | H9: =C9-D9+E9+F9 -> 2380 | I9: =IF(T9="EX",0,IF($H9>$I$7,($H9-$I$7),0)) -> 0 | J9: =IF(_5[[#This Row],[Colonne18]]="EX",_5[[#This Row],[Colonne8]],SUM(H9-I9)) -> 2380 | S9: =IF(T9="EX","OK validé",(IF(A9="","",IF(SUM(M9+N9+O9+P9+Q9+R9)<>J9,"À vérifier","OK validé")))) -> OK validé | T9: =IF(A9="","",VLOOKUP(A9,Nom_employé,3)) -> EX
A10: 6 | B10: Employer A | C10: 1576.14 | D10: 325 | F10: 30 | H10: 1281.14 | I10: 1281.14 | J10: =IF(_5[[#This Row],[Colonne18]]="EX",_5[[#This Row],[Colonne8]],SUM(H10-I10)) -> 0 | K10: 25 | L10: =H9/_5[[#This Row],[Colonne11]] -> 95.2 | P10: 25 | S10: À vérifier | T10: TA
A11: 3 | B11: Employé y | C11: 2145.81 | D11: 10 | F11: 20 | H11: 2155.81 | I11: 2155.81 | J11: =IF(_5[[#This Row],[Colonne18]]="EX",_5[[#This Row],[Colonne8]],SUM(H11-I11)) -> 0 | K11: 40 | L11: =H10/_5[[#This Row],[Colonne11]] -> 32.0285 | N11: 10 | O11: 5 | P11: 5 | R11: 20 | S11: À vérifier | T11: B
H12: 0 | I12: 0 | J12: =IF(_5[[#This Row],[Colonne18]]="EX",_5[[#This Row],[Colonne8]],SUM(H12-I12)) -> 0
H13: 0 | I13: 0 | J13: =IF(_5[[#This Row],[Colonne18]]="EX",_5[[#This Row],[Colonne8]],SUM(H13-I13)) -> 0
H14: =C14-D14+E14+F14 -> 0 | I14: 0 | J14: =IF(_5[[#This Row],[Colonne18]]="EX",_5[[#This Row],[Colonne8]],SUM(H14-I14)) -> 0
H15: 0 | I15: 0 | J15: =IF(_5[[#This Row],[Colonne18]]="EX",_5[[#This Row],[Colonne8]],SUM(H15-I15)) -> 0
H16: 0 | I16: 0 | J16: =IF(_5[[#This Row],[Colonne18]]="EX",_5[[#This Row],[Colonne8]],SUM(H16-I16)) -> 0
B17: =IF(A17="","",VLOOKUP(A17,Nom_employé,2,FALSE)) ->  | H17: 0 | I17: =IF(T17="EX",0,IF($H17>$I$7,($H17-$I$7),0)) -> 0 | J17: =IF(_5[[#This Row],[Colonne18]]="EX",_5[[#This Row],[Colonne8]],SUM(H17-I17)) -> 0 | S17: =IF(T17="EX","OK validé",(IF(A17="","",IF(SUM(M17+N17+O17+P17+Q17+R17)<>J17,"À vérifier","OK validé")))) ->  | T17: =IF(A17="","",VLOOKUP(A17,Nom_employé,3)) -> 
H18: 0 | I18: 0 | J18: =IF(_5[[#This Row],[Colonne18]]="EX",_5[[#This Row],[Colonne8]],SUM(H18-I18)) -> 0
H19: 0 | I19: 0 | J19: =IF(_5[[#This Row],[Colonne18]]="EX",_5[[#This Row],[Colonne8]],SUM(H19-I19)) -> 0
H20: 0 | I20: 0 | J20: =IF(_5[[#This Row],[Colonne18]]="EX",_5[[#This Row],[Colonne8]],SUM(H20-I20)) -> 0
H21: 0 | I21: 0 | J21: =IF(_5[[#This Row],[Colonne18]]="EX",_5[[#This Row],[Colonne8]],SUM(H21-I21)) -> 0
H22: 0 | I22: 0 | J22: =IF(_5[[#This Row],[Colonne18]]="EX",_5[[#This Row],[Colonne8]],SUM(H22-I22)) -> 0
H23: 0 | I23: 0 | J23: =IF(_5[[#This Row],[Colonne18]]="EX",_5[[#This Row],[Colonne8]],SUM(H23-I23)) -> 0
A24: Total | C24: =SUBTOTAL(109,_5[Colonne3]) -> 6041.95 | D24: =SUBTOTAL(109,_5[Colonne4]) -> 350 | E24: =SUBTOTAL(109,_5[Colonne5]) -> 0 | F24: =SUBTOTAL(109,_5[Colonne6]) -> 125 | G24: =SUBTOTAL(109,_5[Colonne7]) -> 0 | H24: =SUBTOTAL(109,_5[Colonne8]) -> 5816.95 | I24: =SUBTOTAL(109,_5[Colonne9]) -> 3436.95 | J24: =SUBTOTAL(109,_5[Colonne10]) -> 2380 | M24: =SUBTOTAL(109,_5[Colonne13]) -> 0 | N24: =SUBTOTAL(109,_5[Colonne14]) -> 10 | O24: =SUBTOTAL(109,_5[Colonne15]) -> 5 | P24: =SUBTOTAL(109,_5[Colonne16]) -> 30 | Q24: =SUBTOTAL(109,_5[Colonne163]) -> 0 | R24: =SUBTOTAL(109,_5[Colonne162]) -> 20
B107: Modele | C107: =_5[[#Totals],[Colonne3]] -> 6041.95 | D107: =_5[[#Totals],[Colonne4]] -> 350 | E107: =_5[[#Totals],[Colonne5]] -> 0 | F107: =_5[[#Totals],[Colonne6]] -> 125 | G107: =_5[[#Totals],[Colonne7]] -> 0 | H107: =_5[[#Totals],[Colonne8]] -> 5816.95 | I107: =_5[[#Totals],[Colonne9]] -> 3436.95 | J107: =_5[[#Totals],[Colonne10]] -> 2380 | K107: =_5[[#Totals],[Colonne11]] -> 0 | L107: =_5[[#Totals],[Colonne12]] -> 0 | M107: =_5[[#Totals],[Colonne13]] -> 0 | N107: =_5[[#Totals],[Colonne14]] -> 10 | O107: =_5[[#Totals],[Colonne15]] -> 5 | P107: =_5[[#Totals],[Colonne16]] -> 30 | Q107: =_5[[#Totals],[Colonne163]] -> 0 | R107: =_5[[#Totals],[Colonne162]] -> 20 | S107: =_5[[#Totals],[Colonne17]] -> 0

Sheet Fin
